Department Family,Entity,Date Paid,Expense Type,Expense Area,Supplier,Transaction Number,Amount (�),Supplier VAT Registration Number
BEIS,Met Office,2020-10-01,11 SERVICES,GOVERNMENT SERVICES,FCDO,447130,2852.13,888813560
BEIS,Met Office,2020-10-01,11 SERVICES,GOVERNMENT SERVICES,HEALTH & SAFETY EXECUTIVE,446397,127517.22,888810177
BEIS,Met Office,2020-10-01,11 SERVICES,GOVERNMENT SERVICES,HEALTH & SAFETY EXECUTIVE,446997,-127517.22,888810177
BEIS,Met Office,2020-10-01,11 SERVICES,GOVERNMENT SERVICES,HEALTH & SAFETY EXECUTIVE,447108,127517.22,888810177
BEIS,Met Office,2020-10-01,06 ACCOMMODATION,CHIEF FINANCIAL OFFICER,NPL Management Ltd,447192,1000,207523388
BEIS,Met Office,2020-10-01,07 EQUIPMENT,OPERATIONS,SCHLEIFRING GMBH,21810,127.39,DE811159634
BEIS,Met Office,2020-10-01,06 ACCOMMODATION,CHIEF FINANCIAL OFFICER,Severn Trent Water Ltd,446435,150,486985565
BEIS,Met Office,2020-10-01,06 ACCOMMODATION,CHIEF FINANCIAL OFFICER,Severn Trent Water Ltd,447323,-150,486985565
BEIS,Met Office,2020-10-06,08 SOFTWARE LICENCES,TECHNOLOGY,DEPARTMENT OF FINANCE AND PERSONNEL,443433,66.05,888808059
BEIS,Met Office,2020-10-06,08 SOFTWARE LICENCES,TECHNOLOGY,DEPARTMENT OF FINANCE AND PERSONNEL,447473,-66.05,888808059
BEIS,Met Office,2020-10-06,06 ACCOMMODATION,CHIEF FINANCIAL OFFICER,REACTED PERSONAL DATA,442420,751,426523462
BEIS,Met Office,2020-10-06,06 ACCOMMODATION,CHIEF FINANCIAL OFFICER,REACTED PERSONAL DATA,442758,751,426523462
BEIS,Met Office,2020-10-06,FIXTURE & FITTINGS,CHIEF FINANCIAL OFFICER,ULTIM8 CONSTRUCTION LTD,445186,10313,998206374
BEIS,Met Office,2020-10-07,11 SERVICES,TECHNOLOGY,AMAZON WEB SERVICES INC.,9918,12461.75,N/A
BEIS,Met Office,2020-10-07,11 SERVICES,OPERATIONS,COLLECTE LOCALISATION SATELLITES (C.L.S.),21778,6973.06,FR95338034390
BEIS,Met Office,2020-10-07,11 SERVICES,OPERATIONS,COLLECTE LOCALISATION SATELLITES (C.L.S.),21780,26.86,FR95338034390
BEIS,Met Office,2020-10-07,11 SERVICES,OPERATIONS,COLLECTE LOCALISATION SATELLITES (C.L.S.),21781,169.25,FR95338034390
BEIS,Met Office,2020-10-07,11 SERVICES,OPERATIONS,COLLECTE LOCALISATION SATELLITES (C.L.S.),21782,6439.39,FR95338034390
BEIS,Met Office,2020-10-07,10 EQUIPMENT MAINTENANCE,OPERATIONS,COMMISIONERS OF IRISH LIGHT,21799,7396.12,0509659V
BEIS,Met Office,2020-10-07,11 SERVICES,GOVERNMENT SERVICES,ECMWF,20827,791.12,NOTVATREG
BEIS,Met Office,2020-10-07,11 SERVICES,GOVERNMENT SERVICES,ECMWF,20856,413.03,NOTVATREG
BEIS,Met Office,2020-10-07,11 SERVICES,GOVERNMENT SERVICES,ECMWF,21068,420.33,NOTVATREG
BEIS,Met Office,2020-10-07,11 SERVICES,GOVERNMENT SERVICES,ECMWF,21315,4920.25,NOTVATREG
BEIS,Met Office,2020-10-07,11 SERVICES,GOVERNMENT SERVICES,ECMWF,21788,41.71,NOTVATREG
BEIS,Met Office,2020-10-07,11 SERVICES,GOVERNMENT SERVICES,ECMWF,21789,-23.09,NOTVATREG
BEIS,Met Office,2020-10-07,11 SERVICES,GOVERNMENT SERVICES,ECMWF,21790,-24.62,NOTVATREG
BEIS,Met Office,2020-10-07,11 SERVICES,GOVERNMENT SERVICES,ECMWF,21791,-461.68,NOTVATREG
BEIS,Met Office,2020-10-07,11 SERVICES,GOVERNMENT SERVICES,ECMWF,21793,101.57,NOTVATREG
BEIS,Met Office,2020-10-07,11 SERVICES,GOVERNMENT SERVICES,ECMWF,21837,-910.81,NOTVATREG
BEIS,Met Office,2020-10-07,11 SERVICES,OPERATIONS,"EUTELSAT MADERIA, UNIPESSOAL LDA",21798,2399.82,PT511283733
BEIS,Met Office,2020-10-07,11 SERVICES,OPERATIONS,"EUTELSAT, S.A.",21779,3936.17,-
BEIS,Met Office,2020-10-07,11 SERVICES,OPERATIONS,"EUTELSAT, S.A.",21797,3150.35,-
BEIS,Met Office,2020-10-07,11 SERVICES,GOVERNMENT SERVICES,"INTELLOVATIONS, LLC",9951,2231.93,-
BEIS,Met Office,2020-10-07,STOCK,OPERATIONS,VAISALA OYJ,21516,31474.77,FI01244162
BEIS,Met Office,2020-10-07,STOCK,OPERATIONS,VAISALA OYJ,21523,27436.16,FI01244162
BEIS,Met Office,2020-10-07,STOCK,OPERATIONS,VAISALA OYJ,21760,0,FI01244162
BEIS,Met Office,2020-10-07,STOCK,OPERATIONS,VAISALA OYJ,21760,0,FI01244162
BEIS,Met Office,2020-10-07,STOCK,OPERATIONS,VAISALA OYJ,21760,16089.42,FI01244162
BEIS,Met Office,2020-10-07,STOCK,OPERATIONS,VAISALA OYJ,21760,3696.66,FI01244162
BEIS,Met Office,2020-10-08,13 MISCELLANEOUS,SCIENCE,AB MULTIMEDIA LTD,447566,50,849333502
BEIS,Met Office,2020-10-08,11 SERVICES,GOVERNMENT SERVICES,ADOPSTAR,447395,1250,115036848
BEIS,Met Office,2020-10-08,03 STAFF COSTS T&S,OPERATIONS,AIRPORT CAR RENTALS LTD,447424,320,-
BEIS,Met Office,2020-10-08,11 SERVICES,TECHNOLOGY,AKAMAI TECHNOLOGIES LTD,447513,4918.08,745091237
BEIS,Met Office,2020-10-08,11 SERVICES,TECHNOLOGY,AKAMAI TECHNOLOGIES LTD,447513,25819.95,745091237
BEIS,Met Office,2020-10-08,11 SERVICES,CHIEF FINANCIAL OFFICER,ALLSTAR BUSINESS SOLUTIONS LTD,447408,2246.12,747880191
BEIS,Met Office,2020-10-08,11 SERVICES,TECHNOLOGY,BAE SYSTEMS APPLIED INTELLIGENCE LIMITED,445840,15510,GB641407169
BEIS,Met Office,2020-10-08,11 SERVICES,TECHNOLOGY,BAE SYSTEMS APPLIED INTELLIGENCE LIMITED,445886,13526,GB641407169
BEIS,Met Office,2020-10-08,11 SERVICES,TECHNOLOGY,BAE SYSTEMS APPLIED INTELLIGENCE LIMITED,445888,25126,GB641407169
BEIS,Met Office,2020-10-08,11 SERVICES,TECHNOLOGY,BAE SYSTEMS APPLIED INTELLIGENCE LIMITED,445889,15840,GB641407169
BEIS,Met Office,2020-10-08,11 SERVICES,TECHNOLOGY,BAE SYSTEMS APPLIED INTELLIGENCE LIMITED,445890,7631.25,GB641407169
BEIS,Met Office,2020-10-08,11 SERVICES,TECHNOLOGY,BAE SYSTEMS APPLIED INTELLIGENCE LIMITED,445905,11902.88,GB641407169
BEIS,Met Office,2020-10-08,11 SERVICES,TECHNOLOGY,BAE SYSTEMS APPLIED INTELLIGENCE LIMITED,445906,13568.04,GB641407169
BEIS,Met Office,2020-10-08,11 SERVICES,TECHNOLOGY,BAE SYSTEMS APPLIED INTELLIGENCE LIMITED,445908,13200,GB641407169
BEIS,Met Office,2020-10-08,11 SERVICES,TECHNOLOGY,BAE SYSTEMS APPLIED INTELLIGENCE LIMITED,446622,13200,GB641407169
BEIS,Met Office,2020-10-08,11 SERVICES,TECHNOLOGY,BAE SYSTEMS APPLIED INTELLIGENCE LIMITED,446623,6641.25,GB641407169
BEIS,Met Office,2020-10-08,11 SERVICES,TECHNOLOGY,BAE SYSTEMS APPLIED INTELLIGENCE LIMITED,446625,7033.52,GB641407169
BEIS,Met Office,2020-10-08,11 SERVICES,TECHNOLOGY,BAE SYSTEMS APPLIED INTELLIGENCE LIMITED,446693,13200,GB641407169
BEIS,Met Office,2020-10-08,11 SERVICES,TECHNOLOGY,BAE SYSTEMS APPLIED INTELLIGENCE LIMITED,446869,10427.29,GB641407169
BEIS,Met Office,2020-10-08,11 SERVICES,TECHNOLOGY,BAE SYSTEMS APPLIED INTELLIGENCE LIMITED,446870,13065.52,GB641407169
BEIS,Met Office,2020-10-08,11 SERVICES,TECHNOLOGY,BAE SYSTEMS APPLIED INTELLIGENCE LIMITED,446871,10820.8,GB641407169
BEIS,Met Office,2020-10-08,11 SERVICES,TECHNOLOGY,BAE SYSTEMS APPLIED INTELLIGENCE LIMITED,447125,2705.2,GB641407169
BEIS,Met Office,2020-10-08,13 MISCELLANEOUS,TECHNOLOGY,"BCS, THE CHARTERED INSTITUTE FOR IT",447493,5032,GB18168724
BEIS,Met Office,2020-10-08,06 ACCOMMODATION,CHIEF FINANCIAL OFFICER,Belfast International Airport Ltd,447230,238.75,617777601
BEIS,Met Office,2020-10-08,06 ACCOMMODATION,CHIEF FINANCIAL OFFICER,Belfast International Airport Ltd,447353,23999.75,617777601
BEIS,Met Office,2020-10-08,06 ACCOMMODATION,CHIEF FINANCIAL OFFICER,Biffa Waste Services Ltd,447376,538.07,537911627
BEIS,Met Office,2020-10-08,11 SERVICES,OPERATIONS,BOC LTD,447407,12806.3,226556555
BEIS,Met Office,2020-10-08,08 SOFTWARE LICENCES,TECHNOLOGY,BOXXE,447329,132,734245248
BEIS,Met Office,2020-10-08,08 SOFTWARE LICENCES,TECHNOLOGY,BOXXE,447329,352,734245248
BEIS,Met Office,2020-10-08,11 SERVICES,CHIEF FINANCIAL OFFICER,BT PLC,447170,9668.09,245719348
BEIS,Met Office,2020-10-08,11 SERVICES,CHIEF FINANCIAL OFFICER,BT PLC,447295,2709.91,245719348
BEIS,Met Office,2020-10-08,11 SERVICES,STRATEGIC INVESTMENT,CACI LTD,447393,547.5,380609841
BEIS,Met Office,2020-10-08,11 SERVICES,GOVERNMENT SERVICES,CACI LTD,447425,4620,380609841
BEIS,Met Office,2020-10-08,11 SERVICES,GOVERNMENT SERVICES,CACI LTD,447425,33611,380609841
BEIS,Met Office,2020-10-08,11 SERVICES,GOVERNMENT SERVICES,CACI LTD,447425,1589,380609841
BEIS,Met Office,2020-10-08,11 SERVICES,GOVERNMENT SERVICES,CACI LTD,447425,7801,380609841
BEIS,Met Office,2020-10-08,11 SERVICES,GOVERNMENT SERVICES,CACI LTD,447425,21664,380609841
BEIS,Met Office,2020-10-08,13 MISCELLANEOUS,CHIEF FINANCIAL OFFICER,CANON UK LTD,447343,1874.81,523797128
BEIS,Met Office,2020-10-08,06 ACCOMMODATION,CHIEF FINANCIAL OFFICER,CARDIFF EXECUTIVE CENTRE LTD,447371,2470,864497378
BEIS,Met Office,2020-10-08,03 STAFF COSTS T&S,OPERATIONS,CARTUS FINANCING LTD,447440,13.23,768489458
BEIS,Met Office,2020-10-08,11 SERVICES,OPERATIONS,CATALYST IT,447375,1301.87,978169262
BEIS,Met Office,2020-10-08,11 SERVICES,GOVERNMENT SERVICES,Cgi It Uk Limited,446884,182843,232615194
BEIS,Met Office,2020-10-08,03 STAFF COSTS T&S,OPERATIONS,CHARLIE'S TRAVEL LTD,447394,551,783848277
BEIS,Met Office,2020-10-08,08 SOFTWARE LICENCES,CORPORATE,CIPHR,447289,15000,242661124
BEIS,Met Office,2020-10-08,11 SERVICES,TECHNOLOGY,CLOUDREACH EUROPE LIMITED,447378,7110,978187168
BEIS,Met Office,2020-10-08,05 CONSULTANTS,STRATEGIC INVESTMENT,CMC PARTNERSHIP CONSULTANCY LTD,447360,9125,305803330
BEIS,Met Office,2020-10-08,06 ACCOMMODATION,CHIEF FINANCIAL OFFICER,CORONA ENERGY LTD,430337,15273.37,577704800
BEIS,Met Office,2020-10-08,06 ACCOMMODATION,CHIEF FINANCIAL OFFICER,CORONA ENERGY LTD,447191,10421.62,577704800
BEIS,Met Office,2020-10-08,CYCLESCHEME,OTHER,CYCLESCHEME LTD,447146,-541.67,850403556
BEIS,Met Office,2020-10-08,CYCLESCHEME,OTHER,CYCLESCHEME LTD,447281,708.33,850403556
BEIS,Met Office,2020-10-08,CYCLESCHEME,OTHER,CYCLESCHEME LTD,447282,833.33,850403556
BEIS,Met Office,2020-10-08,11 SERVICES,OPERATIONS,DAVID HIDE ASTHMA & ALLERGY RES CENTRE,447298,4633.2,NOTVATREGD
BEIS,Met Office,2020-10-08,08 SOFTWARE LICENCES,TECHNOLOGY,DILIGENT BOARDBOOKS LIMITED,447124,165,929451011
BEIS,Met Office,2020-10-08,11 SERVICES,BUSINESS GROUP,DRIVE CREATIVE STUDIO LTD,447293,1680,167656860
BEIS,Met Office,2020-10-08,13 MISCELLANEOUS,CHIEF FINANCIAL OFFICER,DWYFOR COFFEE COMPANY LTD,446418,-29.4,559811116
BEIS,Met Office,2020-10-08,13 MISCELLANEOUS,CHIEF FINANCIAL OFFICER,DWYFOR COFFEE COMPANY LTD,447383,30.18,559811116
BEIS,Met Office,2020-10-08,13 MISCELLANEOUS,CHIEF FINANCIAL OFFICER,DWYFOR COFFEE COMPANY LTD,447384,30.18,559811116
BEIS,Met Office,2020-10-08,05 CONSULTANTS,BUSINESS GROUP,EARTH WIND FIRE AND WATER,447427,168.75,243759288
BEIS,Met Office,2020-10-08,13 MISCELLANEOUS,CHIEF FINANCIAL OFFICER,EAST ANGLIAN WATER COOLER CO,447344,12.6,676668178
BEIS,Met Office,2020-10-08,11 SERVICES,STRATEGIC INVESTMENT,ELASTICSEARCH LTD,447422,6297.38,155790484
BEIS,Met Office,2020-10-08,03 STAFF COSTS T&S,CHIEF FINANCIAL OFFICER,ENTERPRISE RENT A CAR UK LTD,447430,891.86,215557314
BEIS,Met Office,2020-10-08,03 STAFF COSTS T&S,CHIEF FINANCIAL OFFICER,ENTERPRISE RENT A CAR UK LTD,447520,484.12,215557314
BEIS,Met Office,2020-10-08,06 ACCOMMODATION,CHIEF FINANCIAL OFFICER,ENVIRONMENT AGENCY RECEIPTS,447483,132.88,662490134
BEIS,Met Office,2020-10-08,11 SERVICES,CORPORATE,EQUINITI ICS LTD,447396,6846,915967778
BEIS,Met Office,2020-10-08,11 SERVICES,CORPORATE,EQUINITI ICS LTD,447397,316.66,915967778
BEIS,Met Office,2020-10-08,10 EQUIPMENT MAINTENANCE,OPERATIONS,EQUINOX INSTRUMENTS LTD,447292,2370,865954274
BEIS,Met Office,2020-10-08,10 EQUIPMENT MAINTENANCE,OPERATIONS,EQUINOX INSTRUMENTS LTD,447292,1300,865954274
BEIS,Met Office,2020-10-08,10 EQUIPMENT MAINTENANCE,OPERATIONS,EQUINOX INSTRUMENTS LTD,447292,3920,865954274
BEIS,Met Office,2020-10-08,10 EQUIPMENT MAINTENANCE,OPERATIONS,EQUINOX INSTRUMENTS LTD,447292,1404,865954274
BEIS,Met Office,2020-10-08,11 SERVICES,OPERATIONS,EQUINOX INSTRUMENTS LTD,447292,100,865954274
BEIS,Met Office,2020-10-08,11 SERVICES,TECHNOLOGY,FLYFORM LTD,447418,12935,237333808
BEIS,Met Office,2020-10-08,06 ACCOMMODATION,CHIEF FINANCIAL OFFICER,FOX GROUNDS MAINTENANCE & LANDSCAPING LTD,447486,305.66,129495383
BEIS,Met Office,2020-10-08,FIXTURE & FITTINGS,CHIEF FINANCIAL OFFICER,G4S FIRE & SECURITY SYSTEMS (UK),447162,878.16,238560256
BEIS,Met Office,2020-10-08,06 ACCOMMODATION,CHIEF FINANCIAL OFFICER,GBC LTD,447288,187.02,859903672
BEIS,Met Office,2020-10-08,06 ACCOMMODATION,CHIEF FINANCIAL OFFICER,GBC LTD,447288,160.02,859903672
BEIS,Met Office,2020-10-08,08 SOFTWARE LICENCES,TECHNOLOGY,GOOGLE IRELAND LTD,447401,33.13,6388047V
BEIS,Met Office,2020-10-08,08 SOFTWARE LICENCES,TECHNOLOGY,GREY MATTER LTD,447334,357.33,384904621
BEIS,Met Office,2020-10-08,08 SOFTWARE LICENCES,TECHNOLOGY,GREY MATTER LTD,447334,12405.75,384904621
BEIS,Met Office,2020-10-08,08 SOFTWARE LICENCES,TECHNOLOGY,GREY MATTER LTD,447334,1063.26,384904621
BEIS,Met Office,2020-10-08,06 ACCOMMODATION,CHIEF FINANCIAL OFFICER,GRS BUILDING SERVICES SOUTH-WEST,447335,685,-
BEIS,Met Office,2020-10-08,11 SERVICES,CHIEF FINANCIAL OFFICER,HARPER MACLEOD LLP,447485,86.8,762130557
BEIS,Met Office,2020-10-08,11 SERVICES,CORPORATE,HAWK INCENTIVES LTD,447419,7585,238839422
BEIS,Met Office,2020-10-08,11 SERVICES,CORPORATE,HAWK INCENTIVES LTD,447419,379.25,238839422
BEIS,Met Office,2020-10-08,11 SERVICES,CORPORATE,HAWK INCENTIVES LTD,447420,6855,238839422
BEIS,Met Office,2020-10-08,11 SERVICES,CORPORATE,HAWK INCENTIVES LTD,447420,342.75,238839422
BEIS,Met Office,2020-10-08,04 CONTRACTORS,GOVERNMENT SERVICES,HAYS SPECIALIST RECRUITMENT LTD,447229,183.08,773695871
BEIS,Met Office,2020-10-08,04 CONTRACTORS,TECHNOLOGY,HAYS SPECIALIST RECRUITMENT LTD,447338,354.85,773695871
BEIS,Met Office,2020-10-08,04 CONTRACTORS,GOVERNMENT SERVICES,HAYS SPECIALIST RECRUITMENT LTD,447339,366.16,773695871
BEIS,Met Office,2020-10-08,04 CONTRACTORS,CORPORATE,HAYS SPECIALIST RECRUITMENT LTD,447340,219.69,773695871
BEIS,Met Office,2020-10-08,04 CONTRACTORS,CORPORATE,HAYS SPECIALIST RECRUITMENT LTD,447341,488.2,773695871
BEIS,Met Office,2020-10-08,04 CONTRACTORS,TECHNOLOGY,HAYS SPECIALIST RECRUITMENT LTD,447342,558.7,773695871
BEIS,Met Office,2020-10-08,04 CONTRACTORS,CORPORATE,HAYS SPECIALIST RECRUITMENT LTD,447405,640.46,773695871
BEIS,Met Office,2020-10-08,06 ACCOMMODATION,GOVERNMENT SERVICES,HIGHLANDS & ISLANDS AIRPORTS LTD.,447296,300,945667772
BEIS,Met Office,2020-10-08,06 ACCOMMODATION,GOVERNMENT SERVICES,HIGHLANDS & ISLANDS AIRPORTS LTD.,447297,300,945667772
BEIS,Met Office,2020-10-08,06 ACCOMMODATION,GOVERNMENT SERVICES,HIGHLANDS & ISLANDS AIRPORTS LTD.,447301,300,945667772
BEIS,Met Office,2020-10-08,06 ACCOMMODATION,GOVERNMENT SERVICES,HIGHLANDS & ISLANDS AIRPORTS LTD.,447302,300,945667772
BEIS,Met Office,2020-10-08,06 ACCOMMODATION,GOVERNMENT SERVICES,HIGHLANDS & ISLANDS AIRPORTS LTD.,447303,300,945667772
BEIS,Met Office,2020-10-08,06 ACCOMMODATION,GOVERNMENT SERVICES,HIGHLANDS & ISLANDS AIRPORTS LTD.,447380,80.71,945667772
BEIS,Met Office,2020-10-08,11 SERVICES,SUPERCOMPUTING,HOGAN LOVELLS INTERNATIONAL LLP,447435,6693.83,GB123371543
BEIS,Met Office,2020-10-08,11 SERVICES,SUPERCOMPUTING,HOGAN LOVELLS INTERNATIONAL LLP,447435,204280.67,GB123371543
BEIS,Met Office,2020-10-08,11 SERVICES,SUPERCOMPUTING,HOGAN LOVELLS INTERNATIONAL LLP,447435,48024.31,GB123371543
BEIS,Met Office,2020-10-08,11 SERVICES,SUPERCOMPUTING,HOGAN LOVELLS INTERNATIONAL LLP,447435,43327.99,GB123371543
BEIS,Met Office,2020-10-08,11 SERVICES,SUPERCOMPUTING,HOGAN LOVELLS INTERNATIONAL LLP,447435,5810.9,GB123371543
BEIS,Met Office,2020-10-08,08 SOFTWARE LICENCES,TECHNOLOGY,IBM UNITED KINGDOM LTD,447403,11385.7,107328000
BEIS,Met Office,2020-10-08,13 MISCELLANEOUS,SCIENCE,IMPERIAL COLLEGE,447294,334,649926678
BEIS,Met Office,2020-10-08,11 SERVICES,GOVERNMENT SERVICES,INTERNATIONAL MARITIME ORGANIZATION,439702,3372.95,GBN10191242000
BEIS,Met Office,2020-10-08,11 SERVICES,CORPORATE,JCA OCCUPATIONAL PSYCHOLOGISTS LIMITED,447379,3368,655518420
BEIS,Met Office,2020-10-08,04 CONTRACTORS,GOVERNMENT SERVICES,JOBSEEKERS RECRUITMENT SERVICES LTD,447463,662.3,130 1297 14
BEIS,Met Office,2020-10-08,04 CONTRACTORS,GOVERNMENT SERVICES,JOBSEEKERS RECRUITMENT SERVICES LTD,447464,402.75,130 1297 14
BEIS,Met Office,2020-10-08,04 CONTRACTORS,GOVERNMENT SERVICES,JOBSEEKERS RECRUITMENT SERVICES LTD,447465,1008.48,130 1297 14
BEIS,Met Office,2020-10-08,04 CONTRACTORS,GOVERNMENT SERVICES,JOBSEEKERS RECRUITMENT SERVICES LTD,447466,402.75,130 1297 14
BEIS,Met Office,2020-10-08,04 CONTRACTORS,CORPORATE,JOBSEEKERS RECRUITMENT SERVICES LTD,447467,663.78,130 1297 14
BEIS,Met Office,2020-10-08,04 CONTRACTORS,OPERATIONS,JOBSEEKERS RECRUITMENT SERVICES LTD,447468,389.9,130 1297 14
BEIS,Met Office,2020-10-08,11 SERVICES,SCIENCE,KALEIDER LTD,447299,27444.38,N/A
BEIS,Met Office,2020-10-08,08 SOFTWARE LICENCES,TECHNOLOGY,LAND & PROPERTY SERVICES,447474,66.05,888808059
BEIS,Met Office,2020-10-08,11 SERVICES,CHIEF FINANCIAL OFFICER,MITIE SECURITY LTD,447399,708.1,416706654
BEIS,Met Office,2020-10-08,11 SERVICES,CHIEF FINANCIAL OFFICER,MITIE SECURITY LTD,447409,1331.01,416706654
BEIS,Met Office,2020-10-08,06 ACCOMMODATION,CHIEF FINANCIAL OFFICER,MORAY COUNCIL,447359,170.82,663755506
BEIS,Met Office,2020-10-08,06 ACCOMMODATION,CHIEF FINANCIAL OFFICER,MUSEUMS SHEFFIELD,447221,835,772290521
BEIS,Met Office,2020-10-08,12 INTERNATIONAL,OPERATIONS,MYACORN LTD,447437,8850,-
BEIS,Met Office,2020-10-08,11 SERVICES,BUSINESS GROUP,NATS (EN ROUTE) PLC,447306,2028,440379456004
BEIS,Met Office,2020-10-08,06 ACCOMMODATION,CHIEF FINANCIAL OFFICER,NORSCOTT VENDING SERVICES LTD,447489,85,751402071
BEIS,Met Office,2020-10-08,11 SERVICES,TECHNOLOGY,NTT DATA UK LTD,446932,52432,GB159334590
BEIS,Met Office,2020-10-08,PLANT AND EQUIPMENT,CHIEF FINANCIAL OFFICER,OCMIS LTD,446243,25945,406 7922 45
BEIS,Met Office,2020-10-08,06 ACCOMMODATION,CHIEF FINANCIAL OFFICER,OCS Group UK Limited,447363,19162,GB238034379
BEIS,Met Office,2020-10-08,06 ACCOMMODATION,CHIEF FINANCIAL OFFICER,OCS Group UK Limited,447363,109250.39,GB238034379
BEIS,Met Office,2020-10-08,10 EQUIPMENT MAINTENANCE,TECHNOLOGY,ORACLE CORPORATION UK LTD,447175,6365.37,391313073
BEIS,Met Office,2020-10-08,04 CONTRACTORS,TECHNOLOGY,OUTSOURCE UK LIMITED,447196,8550,576118722
BEIS,Met Office,2020-10-08,04 CONTRACTORS,STRATEGIC INVESTMENT,OUTSOURCE UK LIMITED,447330,1887.16,576118722
BEIS,Met Office,2020-10-08,04 CONTRACTORS,TECHNOLOGY,OUTSOURCE UK LIMITED,447331,8121.08,576118722
BEIS,Met Office,2020-10-08,04 CONTRACTORS,TECHNOLOGY,OUTSOURCE UK LIMITED,447332,4186.57,576118722
BEIS,Met Office,2020-10-08,04 CONTRACTORS,CORPORATE,OUTSOURCE UK LIMITED,447333,8500,576118722
BEIS,Met Office,2020-10-08,04 CONTRACTORS,TECHNOLOGY,OUTSOURCE UK LIMITED,447346,9871.75,576118722
BEIS,Met Office,2020-10-08,04 CONTRACTORS,TECHNOLOGY,OUTSOURCE UK LIMITED,447365,7586.08,576118722
BEIS,Met Office,2020-10-08,04 CONTRACTORS,TECHNOLOGY,OUTSOURCE UK LIMITED,447372,1558.96,576118722
BEIS,Met Office,2020-10-08,04 CONTRACTORS,TECHNOLOGY,OUTSOURCE UK LIMITED,447490,8478.56,576118722
BEIS,Met Office,2020-10-08,04 CONTRACTORS,CORPORATE,OUTSOURCE UK LIMITED,447491,6639.74,576118722
BEIS,Met Office,2020-10-08,08 SOFTWARE LICENCES,TECHNOLOGY,PRESENTATION CARTOGRAPHY LTD,447336,7775,-
BEIS,Met Office,2020-10-08,08 SOFTWARE LICENCES,TECHNOLOGY,PRESENTATION CARTOGRAPHY LTD,447336,1875,-
BEIS,Met Office,2020-10-08,04 CONTRACTORS,STRATEGIC INVESTMENT,QUALSERV CONSULTING LTD,447291,6593.43,719067718
BEIS,Met Office,2020-10-08,04 CONTRACTORS,TECHNOLOGY,QUALSERV CONSULTING LTD,447361,6351.67,719067718
BEIS,Met Office,2020-10-08,04 CONTRACTORS,CHIEF FINANCIAL OFFICER,QUALSERV CONSULTING LTD,447362,-6266.52,719067718
BEIS,Met Office,2020-10-08,04 CONTRACTORS,CHIEF FINANCIAL OFFICER,QUALSERV CONSULTING LTD,447448,6266.52,719067718
BEIS,Met Office,2020-10-08,04 CONTRACTORS,STRATEGIC INVESTMENT,QUALSERV CONSULTING LTD,447460,6723.3,719067718
BEIS,Met Office,2020-10-08,06 ACCOMMODATION,CHIEF FINANCIAL OFFICER,REACTED PERSONAL DATA,447402,200,N/A
BEIS,Met Office,2020-10-08,11 SERVICES,CHIEF FINANCIAL OFFICER,REACTED PERSONAL DATA,447417,871.2,729159704
BEIS,Met Office,2020-10-08,06 ACCOMMODATION,CHIEF FINANCIAL OFFICER,REACTED PERSONAL DATA,447470,160,166458184
BEIS,Met Office,2020-10-08,06 ACCOMMODATION,CHIEF FINANCIAL OFFICER,REACTED PERSONAL DATA,447471,160,166458184
BEIS,Met Office,2020-10-08,06 ACCOMMODATION,GOVERNMENT SERVICES,RESPECT CREMATORIA LTD,447445,200,-
BEIS,Met Office,2020-10-08,06 ACCOMMODATION,GOVERNMENT SERVICES,RESPECT CREMATORIA LTD,447445,35,-
BEIS,Met Office,2020-10-08,11 SERVICES,GOVERNMENT SERVICES,RESURGENCE URBAN RESILIENCE TRUST,447500,31249.76,259524184
BEIS,Met Office,2020-10-08,11 SERVICES,GOVERNMENT SERVICES,RESURGENCE URBAN RESILIENCE TRUST,447501,21990.07,259524184
BEIS,Met Office,2020-10-08,11 SERVICES,CHIEF FINANCIAL OFFICER,Reuters Ltd,447404,1785,397000555
BEIS,Met Office,2020-10-08,11 SERVICES,OPERATIONS,ROWE IT LTD,447381,44190,924964394
BEIS,Met Office,2020-10-08,11 SERVICES,GOVERNMENT SERVICES,ROWE IT LTD,447382,13198.75,924964394
BEIS,Met Office,2020-10-08,11 SERVICES,OPERATIONS,ROWE IT LTD,447385,42525,924964394
BEIS,Met Office,2020-10-08,11 SERVICES,GOVERNMENT SERVICES,ROWE IT LTD,447386,2835,924964394
BEIS,Met Office,2020-10-08,08 SOFTWARE LICENCES,GOVERNMENT SERVICES,ROWE IT LTD,447387,6000,924964394
BEIS,Met Office,2020-10-08,11 SERVICES,STRATEGIC INVESTMENT,ROWE IT LTD,447389,96568.75,924964394
BEIS,Met Office,2020-10-08,04 CONTRACTORS,STRATEGIC INVESTMENT,ROWE IT LTD,447390,15000,924964394
BEIS,Met Office,2020-10-08,11 SERVICES,TECHNOLOGY,SECURIOUS LTD,447163,295,923575806
BEIS,Met Office,2020-10-08,06 ACCOMMODATION,CHIEF FINANCIAL OFFICER,SELECTA UK LTD,447210,130,581705924
BEIS,Met Office,2020-10-08,06 ACCOMMODATION,CHIEF FINANCIAL OFFICER,Severn Trent Water Ltd,442337,-212.29,486985565
BEIS,Met Office,2020-10-08,06 ACCOMMODATION,CHIEF FINANCIAL OFFICER,Severn Trent Water Ltd,445564,20.32,486985565
BEIS,Met Office,2020-10-08,06 ACCOMMODATION,CHIEF FINANCIAL OFFICER,Severn Trent Water Ltd,447324,713.14,486985565
BEIS,Met Office,2020-10-08,06 ACCOMMODATION,CHIEF FINANCIAL OFFICER,SHARED ACCESS LTD,447310,6906.3,920672730
BEIS,Met Office,2020-10-08,11 SERVICES,CHIEF FINANCIAL OFFICER,Siemens Plc,447428,15.03,GB 927 317 516
BEIS,Met Office,2020-10-08,11 SERVICES,CORPORATE,SOCIAL & LOCAL,446983,12269,126 9600 12
BEIS,Met Office,2020-10-08,11 SERVICES,STRATEGIC INVESTMENT,SOFTCAT LTD,447388,168.31,491848503
BEIS,Met Office,2020-10-08,11 SERVICES,TECHNOLOGY,SSE CONTRACTING LTD,447530,10137.45,570118464
BEIS,Met Office,2020-10-08,11 SERVICES,CHIEF FINANCIAL OFFICER,ST JOHN AMBULANCE,447290,535,564553916
BEIS,Met Office,2020-10-08,11 SERVICES,TECHNOLOGY,SYNTHESYS SYSTEMS ENGINEERS LTD,447503,1741.5,499309492
BEIS,Met Office,2020-10-08,06 ACCOMMODATION,CHIEF FINANCIAL OFFICER,THE CLEANING CREW COMPANY,447300,594,343579772
BEIS,Met Office,2020-10-08,11 SERVICES,OPERATIONS,The James Hutton Institute,447345,4633.2,GB108249520
BEIS,Met Office,2020-10-08,06 ACCOMMODATION,CHIEF FINANCIAL OFFICER,UK CENTRE FOR ECOLOGY & HYDROLOGY (UKCEH),447492,8734.4,336940192
BEIS,Met Office,2020-10-08,11 SERVICES,OPERATIONS,UK TELEMATICS LIMITED,447411,299,GB763051643
BEIS,Met Office,2020-10-08,11 SERVICES,GOVERNMENT SERVICES,UNIVERSITY OF CAMBRIDGE,447364,10000,214222124
BEIS,Met Office,2020-10-08,03 STAFF COSTS T&S,CORPORATE,UNIVERSITY OF EXETER,436422,90,142047795
BEIS,Met Office,2020-10-08,13 MISCELLANEOUS,SCIENCE,UNIVERSITY OF EXETER,438456,2000,142047795
BEIS,Met Office,2020-10-08,11 SERVICES,SCIENCE,University Of Leeds,445205,3163.68,613451470
BEIS,Met Office,2020-10-08,13 MISCELLANEOUS,SCIENCE,University Of Leeds,447567,1000,613451470
BEIS,Met Office,2020-10-08,13 MISCELLANEOUS,SCIENCE,University Of Leeds,447569,1000,613451470
BEIS,Met Office,2020-10-08,13 MISCELLANEOUS,SCIENCE,University Of Leeds,447576,1000,613451470
BEIS,Met Office,2020-10-08,11 SERVICES,SCIENCE,UNIVERSITY OF OXFORD,447413,25000,125506730
BEIS,Met Office,2020-10-08,11 SERVICES,SCIENCE,University Of Reading,447494,25507,200012659
BEIS,Met Office,2020-10-08,13 MISCELLANEOUS,SCIENCE,University Of Reading,447573,1250,200012659
BEIS,Met Office,2020-10-08,13 MISCELLANEOUS,SCIENCE,University Of Reading,447574,1687.5,200012659
BEIS,Met Office,2020-10-08,11 SERVICES,CHIEF FINANCIAL OFFICER,VIRGIN MEDIA BUSINESS,447169,19997.5,591819014
BEIS,Met Office,2020-10-08,11 SERVICES,CHIEF FINANCIAL OFFICER,VIRGIN MEDIA BUSINESS,447169,18229,591819014
BEIS,Met Office,2020-10-08,04 CONTRACTORS,TECHNOLOGY,WA CONSULTANTS LTD,447283,8490.45,876328977
BEIS,Met Office,2020-10-08,04 CONTRACTORS,SCIENCE,WA CONSULTANTS LTD,447284,9810,876328977
BEIS,Met Office,2020-10-08,04 CONTRACTORS,GOVERNMENT SERVICES,WA CONSULTANTS LTD,447285,3240,876328977
BEIS,Met Office,2020-10-08,04 CONTRACTORS,OPERATIONS,WA CONSULTANTS LTD,447286,9927.5,876328977
BEIS,Met Office,2020-10-08,04 CONTRACTORS,TECHNOLOGY,WA CONSULTANTS LTD,447287,9222.5,876328977
BEIS,Met Office,2020-10-08,04 CONTRACTORS,TECHNOLOGY,WA CONSULTANTS LTD,447304,12750,876328977
BEIS,Met Office,2020-10-08,04 CONTRACTORS,TECHNOLOGY,WA CONSULTANTS LTD,447305,8400,876328977
BEIS,Met Office,2020-10-08,04 CONTRACTORS,STRATEGIC INVESTMENT,WA CONSULTANTS LTD,447307,6579.15,876328977
BEIS,Met Office,2020-10-08,04 CONTRACTORS,TECHNOLOGY,WA CONSULTANTS LTD,447308,11742,876328977
BEIS,Met Office,2020-10-08,04 CONTRACTORS,TECHNOLOGY,WA CONSULTANTS LTD,447309,10222.95,876328977
BEIS,Met Office,2020-10-08,04 CONTRACTORS,TECHNOLOGY,WA CONSULTANTS LTD,447496,11309.13,876328977
BEIS,Met Office,2020-10-08,04 CONTRACTORS,TECHNOLOGY,WA CONSULTANTS LTD,447497,10500,876328977
BEIS,Met Office,2020-10-08,11 SERVICES,CHIEF FINANCIAL OFFICER,WEBEX COMMUNICATIONS UK LTD,447151,264.91,815974302
BEIS,Met Office,2020-10-08,06 ACCOMMODATION,CHIEF FINANCIAL OFFICER,WEST LANCASHIRE BOROUGH COUNCIL,447370,125.98,-
BEIS,Met Office,2020-10-08,11 SERVICES,TECHNOLOGY,WIREFAST LTD,447391,3525.75,749536001
BEIS,Met Office,2020-10-08,11 SERVICES,TECHNOLOGY,WIREFAST LTD,447392,76.59,749536001
BEIS,Met Office,2020-10-08,11 SERVICES,OPERATIONS,WORLDPAY LTD,447398,22.35,991280207
BEIS,Met Office,2020-10-08,06 ACCOMMODATION,CHIEF FINANCIAL OFFICER,XEIAD,447358,537.93,811321091
BEIS,Met Office,2020-10-08,10 EQUIPMENT MAINTENANCE,OPERATIONS,YOUNG CALIBRATION LIMITED,447436,3000,673900720
BEIS,Met Office,2020-10-08,11 SERVICES,OPERATIONS,YOUNG CALIBRATION LIMITED,447436,10,673900720
BEIS,Met Office,2020-10-13,11 SERVICES,CHIEF FINANCIAL OFFICER,APPLE CENTRAL TAXIS,447717,50,449238720
BEIS,Met Office,2020-10-13,06 ACCOMMODATION,CHIEF FINANCIAL OFFICER,BROXTOWE BOROUGH COUNCIL,447714,239.98,118033013
BEIS,Met Office,2020-10-13,11 SERVICES,CHIEF FINANCIAL OFFICER,BT CONFERENCING,447711,337.33,245719348
BEIS,Met Office,2020-10-13,11 SERVICES,GOVERNMENT SERVICES,Cgi It Uk Limited,447594,182843,232615194
BEIS,Met Office,2020-10-13,10 EQUIPMENT MAINTENANCE,TECHNOLOGY,COMPUTACENTER (UK) LTD,447709,62225.05,490334648
BEIS,Met Office,2020-10-13,06 ACCOMMODATION,CHIEF FINANCIAL OFFICER,EDF ENERGY CUSTOMERS PLC,446640,-107891.66,523041202
BEIS,Met Office,2020-10-13,06 ACCOMMODATION,CHIEF FINANCIAL OFFICER,EDF ENERGY CUSTOMERS PLC,447703,111981.23,523041202
BEIS,Met Office,2020-10-13,06 ACCOMMODATION,CHIEF FINANCIAL OFFICER,EDF ENERGY CUSTOMERS PLC,447704,369910.31,523041202
BEIS,Met Office,2020-10-13,06 ACCOMMODATION,CHIEF FINANCIAL OFFICER,EDF ENERGY CUSTOMERS PLC,447705,148580.86,523041202
BEIS,Met Office,2020-10-13,06 ACCOMMODATION,CHIEF FINANCIAL OFFICER,EDF ENERGY CUSTOMERS PLC,447706,128531.77,523041202
BEIS,Met Office,2020-10-13,06 ACCOMMODATION,CHIEF FINANCIAL OFFICER,EDF ENERGY CUSTOMERS PLC,447707,-104046.04,523041202
BEIS,Met Office,2020-10-13,06 ACCOMMODATION,CHIEF FINANCIAL OFFICER,EDF ENERGY CUSTOMERS PLC,447708,-118018.26,523041202
BEIS,Met Office,2020-10-13,11 SERVICES,CHIEF FINANCIAL OFFICER,EXPONENTIAL-E,447590,2792.52,GB798572653
BEIS,Met Office,2020-10-13,11 SERVICES,CHIEF FINANCIAL OFFICER,FLYFORM LTD,447572,6965,237333808
BEIS,Met Office,2020-10-13,11 SERVICES,TECHNOLOGY,FLYFORM LTD,447572,3482.5,237333808
BEIS,Met Office,2020-10-13,04 CONTRACTORS,CORPORATE,HAYS SPECIALIST RECRUITMENT LTD,447593,658.25,773695871
BEIS,Met Office,2020-10-13,04 CONTRACTORS,CORPORATE,HAYS SPECIALIST RECRUITMENT LTD,447614,658.25,773695871
BEIS,Met Office,2020-10-13,04 CONTRACTORS,CORPORATE,HAYS SPECIALIST RECRUITMENT LTD,447697,634.67,773695871
BEIS,Met Office,2020-10-13,04 CONTRACTORS,CORPORATE,HAYS SPECIALIST RECRUITMENT LTD,447698,488.2,773695871
BEIS,Met Office,2020-10-13,04 CONTRACTORS,TECHNOLOGY,HAYS SPECIALIST RECRUITMENT LTD,447699,581.35,773695871
BEIS,Met Office,2020-10-13,04 CONTRACTORS,TECHNOLOGY,HAYS SPECIALIST RECRUITMENT LTD,447700,558.7,773695871
BEIS,Met Office,2020-10-13,13 MISCELLANEOUS,CORPORATE,HEALTH MANAGEMENT LTD,447477,12390.35,792250621
BEIS,Met Office,2020-10-13,10 EQUIPMENT MAINTENANCE,TECHNOLOGY,Hewlett Packard Ltd,447155,720084.62,314149679
BEIS,Met Office,2020-10-13,FIXTURE & FITTINGS,CHIEF FINANCIAL OFFICER,I J CANNINGS & SON LTD,445467,1464.13,192803203
BEIS,Met Office,2020-10-13,08 SOFTWARE LICENCES,TECHNOLOGY,IBM UNITED KINGDOM LTD,447502,8958,107328000
BEIS,Met Office,2020-10-13,11 SERVICES,CHIEF FINANCIAL OFFICER,JERSEY TELECOM,447710,1233.13,NOTVATREG
BEIS,Met Office,2020-10-13,11 SERVICES,CHIEF FINANCIAL OFFICER,JERSEY TELECOM,447710,50.48,NOTVATREG
BEIS,Met Office,2020-10-13,11 SERVICES,OPERATIONS,LOGISTICS EMPLOYMENT TRAINING SERVICES LTD,447591,20,897457159
BEIS,Met Office,2020-10-13,11 SERVICES,OPERATIONS,LOGISTICS EMPLOYMENT TRAINING SERVICES LTD,447591,970,897457159
BEIS,Met Office,2020-10-13,11 SERVICES,OPERATIONS,LOGISTICS EMPLOYMENT TRAINING SERVICES LTD,447592,30,897457159
BEIS,Met Office,2020-10-13,11 SERVICES,OPERATIONS,LOGISTICS EMPLOYMENT TRAINING SERVICES LTD,447592,485,897457159
BEIS,Met Office,2020-10-13,11 SERVICES,CHIEF FINANCIAL OFFICER,MAWASEM LTD,444147,-28012.02,197694731
BEIS,Met Office,2020-10-13,11 SERVICES,CHIEF FINANCIAL OFFICER,MAWASEM LTD,444770,4569.1,197694731
BEIS,Met Office,2020-10-13,11 SERVICES,CHIEF FINANCIAL OFFICER,MAWASEM LTD,445899,6762.7,197694731
BEIS,Met Office,2020-10-13,11 SERVICES,CHIEF FINANCIAL OFFICER,MAWASEM LTD,446338,11132.9,197694731
BEIS,Met Office,2020-10-13,11 SERVICES,CHIEF FINANCIAL OFFICER,MAWASEM LTD,447736,24239.94,197694731
BEIS,Met Office,2020-10-13,11 SERVICES,OPERATIONS,MOMENTUM INCORPORATED,447510,12800,598958541
BEIS,Met Office,2020-10-13,11 SERVICES,OPERATIONS,MOMENTUM INCORPORATED,447511,6400,598958541
BEIS,Met Office,2020-10-13,11 SERVICES,OPERATIONS,MOMENTUM INCORPORATED,447512,6400,598958541
BEIS,Met Office,2020-10-13,04 CONTRACTORS,STRATEGIC INVESTMENT,OUTSOURCE UK LIMITED,447575,6892.34,576118722
BEIS,Met Office,2020-10-13,13 MISCELLANEOUS,CHIEF FINANCIAL OFFICER,POSTURITE (UK) LTD,443548,37.79,583565114
BEIS,Met Office,2020-10-13,13 MISCELLANEOUS,CHIEF FINANCIAL OFFICER,POSTURITE (UK) LTD,443549,170.47,583565114
BEIS,Met Office,2020-10-13,13 MISCELLANEOUS,CHIEF FINANCIAL OFFICER,POSTURITE (UK) LTD,446123,169.85,583565114
BEIS,Met Office,2020-10-13,13 MISCELLANEOUS,CHIEF FINANCIAL OFFICER,POSTURITE (UK) LTD,446947,488.53,583565114
BEIS,Met Office,2020-10-13,13 MISCELLANEOUS,CHIEF FINANCIAL OFFICER,POSTURITE (UK) LTD,446982,30.97,583565114
BEIS,Met Office,2020-10-13,13 MISCELLANEOUS,CHIEF FINANCIAL OFFICER,POSTURITE (UK) LTD,447589,654.1,583565114
BEIS,Met Office,2020-10-13,06 ACCOMMODATION,CHIEF FINANCIAL OFFICER,POWER NI ENERGY LTD,447721,466.14,617518142
BEIS,Met Office,2020-10-13,11 SERVICES,CORPORATE,REACTED PERSONAL DATA,447374,6585.42,143043312
BEIS,Met Office,2020-10-13,06 ACCOMMODATION,CHIEF FINANCIAL OFFICER,REACTED PERSONAL DATA,447712,751,426523462
BEIS,Met Office,2020-10-13,06 ACCOMMODATION,CHIEF FINANCIAL OFFICER,SCOTTISH HYDRO-ELECTRIC,447735,55.56,553769603
BEIS,Met Office,2020-10-13,04 CONTRACTORS,STRATEGIC INVESTMENT,SOLOS CONSULTANTS LTD,447521,9828,812035476
BEIS,Met Office,2020-10-13,04 CONTRACTORS,TECHNOLOGY,SOLOS CONSULTANTS LTD,447522,13585,812035476
BEIS,Met Office,2020-10-13,04 CONTRACTORS,TECHNOLOGY,SOLOS CONSULTANTS LTD,447523,6560,812035476
BEIS,Met Office,2020-10-13,04 CONTRACTORS,CORPORATE,SOLOS CONSULTANTS LTD,447524,7837.6,812035476
BEIS,Met Office,2020-10-13,04 CONTRACTORS,TECHNOLOGY,SOLOS CONSULTANTS LTD,447525,8025.6,812035476
BEIS,Met Office,2020-10-13,04 CONTRACTORS,TECHNOLOGY,SOLOS CONSULTANTS LTD,447526,10400,812035476
BEIS,Met Office,2020-10-13,04 CONTRACTORS,STRATEGIC INVESTMENT,SOLOS CONSULTANTS LTD,447527,17680,812035476
BEIS,Met Office,2020-10-13,04 CONTRACTORS,TECHNOLOGY,SOLOS CONSULTANTS LTD,447528,18720,812035476
BEIS,Met Office,2020-10-13,04 CONTRACTORS,TECHNOLOGY,SOLOS CONSULTANTS LTD,447532,7053.8,812035476
BEIS,Met Office,2020-10-13,04 CONTRACTORS,TECHNOLOGY,SOLOS CONSULTANTS LTD,447533,13000,812035476
BEIS,Met Office,2020-10-13,04 CONTRACTORS,OPERATIONS,SOLOS CONSULTANTS LTD,447538,8834.81,812035476
BEIS,Met Office,2020-10-13,04 CONTRACTORS,TECHNOLOGY,SOLOS CONSULTANTS LTD,447539,7524,812035476
BEIS,Met Office,2020-10-13,04 CONTRACTORS,GOVERNMENT SERVICES,SOLOS CONSULTANTS LTD,447540,7886.8,812035476
BEIS,Met Office,2020-10-13,04 CONTRACTORS,GOVERNMENT SERVICES,SOLOS CONSULTANTS LTD,447541,9614,812035476
BEIS,Met Office,2020-10-13,04 CONTRACTORS,STRATEGIC INVESTMENT,SOLOS CONSULTANTS LTD,447542,7223.04,812035476
BEIS,Met Office,2020-10-13,04 CONTRACTORS,STRATEGIC INVESTMENT,SOLOS CONSULTANTS LTD,447542,802.56,812035476
BEIS,Met Office,2020-10-13,04 CONTRACTORS,TECHNOLOGY,SOLOS CONSULTANTS LTD,447543,8478.94,812035476
BEIS,Met Office,2020-10-13,04 CONTRACTORS,TECHNOLOGY,SOLOS CONSULTANTS LTD,447544,10600,812035476
BEIS,Met Office,2020-10-13,04 CONTRACTORS,STRATEGIC INVESTMENT,SOLOS CONSULTANTS LTD,447545,12350,812035476
BEIS,Met Office,2020-10-13,04 CONTRACTORS,STRATEGIC INVESTMENT,SOLOS CONSULTANTS LTD,447546,9555,812035476
BEIS,Met Office,2020-10-13,04 CONTRACTORS,CORPORATE,SOLOS CONSULTANTS LTD,447547,17394.3,812035476
BEIS,Met Office,2020-10-13,04 CONTRACTORS,STRATEGIC INVESTMENT,SOLOS CONSULTANTS LTD,447548,13886,812035476
BEIS,Met Office,2020-10-13,04 CONTRACTORS,TECHNOLOGY,SOLOS CONSULTANTS LTD,447549,9063,812035476
BEIS,Met Office,2020-10-13,04 CONTRACTORS,CHIEF FINANCIAL OFFICER,SOLOS CONSULTANTS LTD,447550,11356.66,812035476
BEIS,Met Office,2020-10-13,04 CONTRACTORS,BUSINESS GROUP,SOLOS CONSULTANTS LTD,447551,8925.2,812035476
BEIS,Met Office,2020-10-13,04 CONTRACTORS,CHIEF FINANCIAL OFFICER,SOLOS CONSULTANTS LTD,447552,11316.2,812035476
BEIS,Met Office,2020-10-13,04 CONTRACTORS,TECHNOLOGY,SOLOS CONSULTANTS LTD,447553,9492.21,812035476
BEIS,Met Office,2020-10-13,04 CONTRACTORS,TECHNOLOGY,SOLOS CONSULTANTS LTD,447554,13182,812035476
BEIS,Met Office,2020-10-13,04 CONTRACTORS,TECHNOLOGY,SOLOS CONSULTANTS LTD,447555,11998.8,812035476
BEIS,Met Office,2020-10-13,04 CONTRACTORS,CORPORATE,SOLOS CONSULTANTS LTD,447556,8988.4,812035476
BEIS,Met Office,2020-10-13,04 CONTRACTORS,TECHNOLOGY,SOLOS CONSULTANTS LTD,447557,6600,812035476
BEIS,Met Office,2020-10-13,04 CONTRACTORS,STRATEGIC INVESTMENT,SOLOS CONSULTANTS LTD,447558,8756.8,812035476
BEIS,Met Office,2020-10-13,04 CONTRACTORS,STRATEGIC INVESTMENT,SOLOS CONSULTANTS LTD,447559,8538.98,812035476
BEIS,Met Office,2020-10-13,04 CONTRACTORS,CHIEF FINANCIAL OFFICER,SOLOS CONSULTANTS LTD,447561,-16.8,812035476
BEIS,Met Office,2020-10-13,04 CONTRACTORS,CHIEF FINANCIAL OFFICER,SOLOS CONSULTANTS LTD,447562,-21.1,812035476
BEIS,Met Office,2020-10-13,04 CONTRACTORS,CHIEF FINANCIAL OFFICER,SOLOS CONSULTANTS LTD,447563,-21,812035476
BEIS,Met Office,2020-10-13,04 CONTRACTORS,CHIEF FINANCIAL OFFICER,SOLOS CONSULTANTS LTD,447564,6194.76,812035476
BEIS,Met Office,2020-10-13,04 CONTRACTORS,OPERATIONS,SOLOS CONSULTANTS LTD,447577,13284.99,812035476
BEIS,Met Office,2020-10-13,04 CONTRACTORS,STRATEGIC INVESTMENT,SOLOS CONSULTANTS LTD,447578,8089.56,812035476
BEIS,Met Office,2020-10-13,04 CONTRACTORS,CHIEF FINANCIAL OFFICER,SOLOS CONSULTANTS LTD,447579,-16.88,812035476
BEIS,Met Office,2020-10-13,06 ACCOMMODATION,CHIEF FINANCIAL OFFICER,SOUTH WEST WATER LTD,447720,1573.86,236873674
BEIS,Met Office,2020-10-13,11 SERVICES,BUSINESS GROUP,SPOKE (INTERACTIVE) LTD,447504,700,840156451
BEIS,Met Office,2020-10-13,11 SERVICES,TECHNOLOGY,SSE CONTRACTING LTD,447529,330.67,570118464
BEIS,Met Office,2020-10-13,06 ACCOMMODATION,CHIEF FINANCIAL OFFICER,SSE CONTRACTING LTD,447734,-55.56,570118464
BEIS,Met Office,2020-10-13,13 MISCELLANEOUS,CHIEF FINANCIAL OFFICER,THE INSTITUTION OF ENGINEERING AND TECHNOLOGY,447509,412.7,GB240342016
BEIS,Met Office,2020-10-13,13 MISCELLANEOUS,OPERATIONS,THE INSTITUTION OF ENGINEERING AND TECHNOLOGY,447509,8576.3,GB240342016
BEIS,Met Office,2020-10-13,11 SERVICES,GOVERNMENT SERVICES,UK CENTRE FOR ECOLOGY & HYDROLOGY (UKCEH),447484,127973.17,336940192
BEIS,Met Office,2020-10-13,13 MISCELLANEOUS,SCIENCE,University Of Leeds,447568,1000,613451470
BEIS,Met Office,2020-10-13,13 MISCELLANEOUS,SCIENCE,University Of Reading,447701,333.33,200012659
BEIS,Met Office,2020-10-13,11 SERVICES,GOVERNMENT SERVICES,WALNUT UNLIMITED LIMITED,446165,23600,648857968
BEIS,Met Office,2020-10-13,11 SERVICES,GOVERNMENT SERVICES,WALNUT UNLIMITED LIMITED,446412,-23600,648857968
BEIS,Met Office,2020-10-13,11 SERVICES,GOVERNMENT SERVICES,WALNUT UNLIMITED LIMITED,446413,5900,648857968
BEIS,Met Office,2020-10-13,06 ACCOMMODATION,CHIEF FINANCIAL OFFICER,XEIAD,447488,500,811321091
BEIS,Met Office,2020-10-14,11 SERVICES,TECHNOLOGY,AMAZON WEB SERVICES INC.,9939,2144.34,N/A
BEIS,Met Office,2020-10-14,11 SERVICES,TECHNOLOGY,AMAZON WEB SERVICES INC.,9939,91417.68,N/A
BEIS,Met Office,2020-10-14,11 SERVICES,TECHNOLOGY,AMAZON WEB SERVICES INC.,9961,-377.89,N/A
BEIS,Met Office,2020-10-14,11 SERVICES,TECHNOLOGY,AMAZON WEB SERVICES INC.,9962,-5398.55,N/A
BEIS,Met Office,2020-10-14,11 SERVICES,SCIENCE,DANISH METEOROLOGICAL INSTITUTE,21824,274.55,N/A
BEIS,Met Office,2020-10-14,12 INTERNATIONAL,OPERATIONS,Eumetsat,446949,15584,VE
BEIS,Met Office,2020-10-14,11 SERVICES,SCIENCE,HOCHSCHULE DUSSELDORF (HSD),20560,17073.17,-
BEIS,Met Office,2020-10-14,11 SERVICES,GOVERNMENT SERVICES,IGAD CLIMATE PREDICTION & APPLICATIONS CNTR,447586,81378.39,-
BEIS,Met Office,2020-10-14,06 ACCOMMODATION,CHIEF FINANCIAL OFFICER,JAMES & MARCIA BENJAMIN,447189,520,-
BEIS,Met Office,2020-10-14,11 SERVICES,OPERATIONS,NSSL GLOBAL LTD,9937,54.57,725151948
BEIS,Met Office,2020-10-14,11 SERVICES,OPERATIONS,NSSL GLOBAL LTD,9938,54.57,725151948
BEIS,Met Office,2020-10-14,11 SERVICES,SCIENCE,PETER WALTON,21802,1385.04,-
BEIS,Met Office,2020-10-14,11 SERVICES,OPERATIONS,PLURALSIGHT,447426,15640,EU826020045
BEIS,Met Office,2020-10-14,11 SERVICES,OPERATIONS,PLURALSIGHT,447432,15300,EU826020045
BEIS,Met Office,2020-10-14,11 SERVICES,OPERATIONS,PLURALSIGHT,447433,3016.8,EU826020045
BEIS,Met Office,2020-10-14,12 INTERNATIONAL,OPERATIONS,REACTED PERSONAL DATA,9967,2740.97,-
BEIS,Met Office,2020-10-14,11 SERVICES,GOVERNMENT SERVICES,RIMES,9960,28936.82,-
BEIS,Met Office,2020-10-14,STOCK,OPERATIONS,VAISALA OYJ,21758,0,FI01244162
BEIS,Met Office,2020-10-14,STOCK,OPERATIONS,VAISALA OYJ,21758,22175.09,FI01244162
BEIS,Met Office,2020-10-14,STOCK,OPERATIONS,VAISALA OYJ,21770,0,FI01244162
BEIS,Met Office,2020-10-14,STOCK,OPERATIONS,VAISALA OYJ,21770,0,FI01244162
BEIS,Met Office,2020-10-14,STOCK,OPERATIONS,VAISALA OYJ,21770,0,FI01244162
BEIS,Met Office,2020-10-14,STOCK,OPERATIONS,VAISALA OYJ,21770,10726.28,FI01244162
BEIS,Met Office,2020-10-14,STOCK,OPERATIONS,VAISALA OYJ,21770,16089.42,FI01244162
BEIS,Met Office,2020-10-14,STOCK,OPERATIONS,VAISALA OYJ,21770,6607.42,FI01244162
BEIS,Met Office,2020-10-15,11 SERVICES,GOVERNMENT SERVICES,ALTO AEROSPACE LIMITED,447793,6900,275002528
BEIS,Met Office,2020-10-15,11 SERVICES,SUPERCOMPUTING,Arup,447868,2007.86,524461265
BEIS,Met Office,2020-10-15,13 MISCELLANEOUS,GOVERNMENT SERVICES,AUTOMATED DOCUMENT SERVICES LTD,447832,6059.58,105353449
BEIS,Met Office,2020-10-15,11 SERVICES,TECHNOLOGY,BAE SYSTEMS APPLIED INTELLIGENCE LIMITED,447871,11220,GB641407169
BEIS,Met Office,2020-10-15,11 SERVICES,CORPORATE,BW TRAINING LTD,447788,790,-
BEIS,Met Office,2020-10-15,13 MISCELLANEOUS,CHIEF FINANCIAL OFFICER,CANON UK LTD,447718,498.5,523797128
BEIS,Met Office,2020-10-15,13 MISCELLANEOUS,CHIEF FINANCIAL OFFICER,CANON UK LTD,447718,9.92,523797128
BEIS,Met Office,2020-10-15,13 MISCELLANEOUS,CHIEF FINANCIAL OFFICER,CANON UK LTD,447718,23.14,523797128
BEIS,Met Office,2020-10-15,13 MISCELLANEOUS,CHIEF FINANCIAL OFFICER,CANON UK LTD,447718,36.89,523797128
BEIS,Met Office,2020-10-15,11 SERVICES,TECHNOLOGY,CLOUDREACH EUROPE LIMITED,447787,4117.75,978187168
BEIS,Met Office,2020-10-15,11 SERVICES,TECHNOLOGY,CLOUDREACH EUROPE LIMITED,447859,8607.16,978187168
BEIS,Met Office,2020-10-15,05 CONSULTANTS,STRATEGIC INVESTMENT,CMC PARTNERSHIP CONSULTANCY LTD,447796,20790,305803330
BEIS,Met Office,2020-10-15,11 SERVICES,CHIEF FINANCIAL OFFICER,CMC Partnership Global,447830,3038,303694803
BEIS,Met Office,2020-10-15,03 STAFF COSTS T&S,CHIEF FINANCIAL OFFICER,ENTERPRISE RENT A CAR UK LTD,447806,423.64,215557314
BEIS,Met Office,2020-10-15,03 STAFF COSTS T&S,CHIEF FINANCIAL OFFICER,ENTERPRISE RENT A CAR UK LTD,447807,619.91,215557314
BEIS,Met Office,2020-10-15,13 MISCELLANEOUS,CORPORATE,FOUNDATION FOR SCIENCE & TECHNOLOGY,447587,3065,447089719
BEIS,Met Office,2020-10-15,11 SERVICES,OPERATIONS,GAMMA TELECOM LTD,447779,3234.7,823820344
BEIS,Met Office,2020-10-15,04 CONTRACTORS,TECHNOLOGY,GCS IT RECRUITMENT SPECIALISTS LTD,447789,1592.5,896156575
BEIS,Met Office,2020-10-15,04 CONTRACTORS,TECHNOLOGY,GCS IT RECRUITMENT SPECIALISTS LTD,447790,13500,896156575
BEIS,Met Office,2020-10-15,04 CONTRACTORS,TECHNOLOGY,GCS IT RECRUITMENT SPECIALISTS LTD,447791,8645,896156575
BEIS,Met Office,2020-10-15,04 CONTRACTORS,GOVERNMENT SERVICES,HAYS SPECIALIST RECRUITMENT LTD,447782,366.16,773695871
BEIS,Met Office,2020-10-15,04 CONTRACTORS,CORPORATE,HAYS SPECIALIST RECRUITMENT LTD,447800,707.91,773695871
BEIS,Met Office,2020-10-15,04 CONTRACTORS,CORPORATE,HAYS SPECIALIST RECRUITMENT LTD,447802,890.99,773695871
BEIS,Met Office,2020-10-15,04 CONTRACTORS,GOVERNMENT SERVICES,HAYS SPECIALIST RECRUITMENT LTD,447854,183.08,773695871
BEIS,Met Office,2020-10-15,11 SERVICES,OPERATIONS,INMARSAT SOLUTIONS (CANADA) INC,447478,56.16,766144223
BEIS,Met Office,2020-10-15,08 SOFTWARE LICENCES,GOVERNMENT SERVICES,INTEGRATED SKILLS (UK) LTD,447831,7090,621651269
BEIS,Met Office,2020-10-15,04 CONTRACTORS,CORPORATE,JOBSEEKERS RECRUITMENT SERVICES LTD,447860,663.78,130 1297 14
BEIS,Met Office,2020-10-15,04 CONTRACTORS,GOVERNMENT SERVICES,JOBSEEKERS RECRUITMENT SERVICES LTD,447861,1214.76,130 1297 14
BEIS,Met Office,2020-10-15,04 CONTRACTORS,GOVERNMENT SERVICES,JOBSEEKERS RECRUITMENT SERVICES LTD,447862,662.3,130 1297 14
BEIS,Met Office,2020-10-15,04 CONTRACTORS,GOVERNMENT SERVICES,JOBSEEKERS RECRUITMENT SERVICES LTD,447863,537,130 1297 14
BEIS,Met Office,2020-10-15,04 CONTRACTORS,GOVERNMENT SERVICES,JOBSEEKERS RECRUITMENT SERVICES LTD,447864,662.3,130 1297 14
BEIS,Met Office,2020-10-15,04 CONTRACTORS,OPERATIONS,JOBSEEKERS RECRUITMENT SERVICES LTD,447865,389.9,130 1297 14
BEIS,Met Office,2020-10-15,FIXTURE & FITTINGS,CHIEF FINANCIAL OFFICER,KINGSPAN ACCESS FLOORS LTD,447719,70,450600489
BEIS,Met Office,2020-10-15,FIXTURE & FITTINGS,CHIEF FINANCIAL OFFICER,KINGSPAN ACCESS FLOORS LTD,447719,348.48,450600489
BEIS,Met Office,2020-10-15,06 ACCOMMODATION,OPERATIONS,LHR BUSINESS SUPPORT CENTRE LTD,447810,25.22,927365404
BEIS,Met Office,2020-10-15,11 SERVICES,CHIEF FINANCIAL OFFICER,MITIE SECURITY LTD,447148,20526.35,416706654
BEIS,Met Office,2020-10-15,11 SERVICES,CHIEF FINANCIAL OFFICER,MITIE SECURITY LTD,447149,10263.36,416706654
BEIS,Met Office,2020-10-15,11 SERVICES,CHIEF FINANCIAL OFFICER,MITIE SECURITY LTD,447400,1036.5,416706654
BEIS,Met Office,2020-10-15,04 CONTRACTORS,TECHNOLOGY,OUTSOURCE UK LIMITED,447812,12948.75,576118722
BEIS,Met Office,2020-10-15,04 CONTRACTORS,TECHNOLOGY,OUTSOURCE UK LIMITED,447815,11250,576118722
BEIS,Met Office,2020-10-15,04 CONTRACTORS,STRATEGIC INVESTMENT,OUTSOURCE UK LIMITED,447816,8020.43,576118722
BEIS,Met Office,2020-10-15,04 CONTRACTORS,STRATEGIC INVESTMENT,OUTSOURCE UK LIMITED,447817,12365.5,576118722
BEIS,Met Office,2020-10-15,04 CONTRACTORS,TECHNOLOGY,OUTSOURCE UK LIMITED,447818,20825,576118722
BEIS,Met Office,2020-10-15,04 CONTRACTORS,CHIEF FINANCIAL OFFICER,OUTSOURCE UK LIMITED,447820,8086.12,576118722
BEIS,Met Office,2020-10-15,04 CONTRACTORS,TECHNOLOGY,OUTSOURCE UK LIMITED,447822,11092.4,576118722
BEIS,Met Office,2020-10-15,04 CONTRACTORS,TECHNOLOGY,OUTSOURCE UK LIMITED,447823,2773.1,576118722
BEIS,Met Office,2020-10-15,04 CONTRACTORS,CHIEF FINANCIAL OFFICER,OUTSOURCE UK LIMITED,447824,8173.79,576118722
BEIS,Met Office,2020-10-15,04 CONTRACTORS,CHIEF FINANCIAL OFFICER,OUTSOURCE UK LIMITED,447825,14175.25,576118722
BEIS,Met Office,2020-10-15,04 CONTRACTORS,TECHNOLOGY,OUTSOURCE UK LIMITED,447826,9548.4,576118722
BEIS,Met Office,2020-10-15,04 CONTRACTORS,TECHNOLOGY,OUTSOURCE UK LIMITED,447827,8320.48,576118722
BEIS,Met Office,2020-10-15,04 CONTRACTORS,STRATEGIC INVESTMENT,OUTSOURCE UK LIMITED,447828,7076.85,576118722
BEIS,Met Office,2020-10-15,10 EQUIPMENT MAINTENANCE,OPERATIONS,OVARRO TS LTD,447792,17095,648280518
BEIS,Met Office,2020-10-15,04 CONTRACTORS,STRATEGIC INVESTMENT,REED,447804,8000,835515525
BEIS,Met Office,2020-10-15,04 CONTRACTORS,TECHNOLOGY,REED,447804,1328.94,835515525
BEIS,Met Office,2020-10-15,04 CONTRACTORS,TECHNOLOGY,REED,447804,7667.46,835515525
BEIS,Met Office,2020-10-15,04 CONTRACTORS,TECHNOLOGY,REED,447804,9165,835515525
BEIS,Met Office,2020-10-15,11 SERVICES,SCIENCE,RSM,447838,3200,890965570
BEIS,Met Office,2020-10-15,06 ACCOMMODATION,CHIEF FINANCIAL OFFICER,SAFESTORE LTD,447809,2681.21,722887607
BEIS,Met Office,2020-10-15,07 EQUIPMENT,SCIENCE,SERVO COMPONENTS & SYSTEMS LTD,447877,1186.95,580238346
BEIS,Met Office,2020-10-15,11 SERVICES,OPERATIONS,SOFTWIRE TECHNOLOGY LIMITED,447813,2520,752 1253 57
BEIS,Met Office,2020-10-15,11 SERVICES,GOVERNMENT SERVICES,University Of Bristol,447434,90000,991261800
BEIS,Met Office,2020-10-15,11 SERVICES,GOVERNMENT SERVICES,University Of Bristol,447438,90000,991261800
BEIS,Met Office,2020-10-15,11 SERVICES,GOVERNMENT SERVICES,University Of Bristol,447439,90000,991261800
BEIS,Met Office,2020-10-15,11 SERVICES,GOVERNMENT SERVICES,University Of Bristol,447446,-90000,991261800
BEIS,Met Office,2020-10-15,11 SERVICES,GOVERNMENT SERVICES,University Of Bristol,447447,-90000,991261800
BEIS,Met Office,2020-10-15,04 CONTRACTORS,TECHNOLOGY,WA CONSULTANTS LTD,447776,-650,876328977
BEIS,Met Office,2020-10-15,04 CONTRACTORS,CHIEF FINANCIAL OFFICER,WA CONSULTANTS LTD,447833,5917.7,876328977
BEIS,Met Office,2020-10-15,04 CONTRACTORS,CHIEF FINANCIAL OFFICER,WA CONSULTANTS LTD,447835,10257,876328977
BEIS,Met Office,2020-10-15,04 CONTRACTORS,TECHNOLOGY,WA CONSULTANTS LTD,447836,9309.28,876328977
BEIS,Met Office,2020-10-15,04 CONTRACTORS,OPERATIONS,WA CONSULTANTS LTD,447837,10450,876328977
BEIS,Met Office,2020-10-15,04 CONTRACTORS,TECHNOLOGY,WA CONSULTANTS LTD,447839,14150.75,876328977
BEIS,Met Office,2020-10-15,04 CONTRACTORS,STRATEGIC INVESTMENT,WA CONSULTANTS LTD,447840,4376.2,876328977
BEIS,Met Office,2020-10-15,04 CONTRACTORS,TECHNOLOGY,WA CONSULTANTS LTD,447841,2237.8,876328977
BEIS,Met Office,2020-10-15,04 CONTRACTORS,STRATEGIC INVESTMENT,WA CONSULTANTS LTD,447842,11250,876328977
BEIS,Met Office,2020-10-15,04 CONTRACTORS,CHIEF FINANCIAL OFFICER,WA CONSULTANTS LTD,447843,1440,876328977
BEIS,Met Office,2020-10-15,04 CONTRACTORS,CHIEF FINANCIAL OFFICER,WA CONSULTANTS LTD,447844,8344.74,876328977
BEIS,Met Office,2020-10-15,04 CONTRACTORS,TECHNOLOGY,WA CONSULTANTS LTD,447847,10770.6,876328977
BEIS,Met Office,2020-10-15,04 CONTRACTORS,GOVERNMENT SERVICES,WA CONSULTANTS LTD,447848,906,876328977
BEIS,Met Office,2020-10-15,04 CONTRACTORS,TECHNOLOGY,WA CONSULTANTS LTD,447849,9810,876328977
BEIS,Met Office,2020-10-15,04 CONTRACTORS,STRATEGIC INVESTMENT,WA CONSULTANTS LTD,447855,4923.16,876328977
BEIS,Met Office,2020-10-15,04 CONTRACTORS,CHIEF FINANCIAL OFFICER,WA CONSULTANTS LTD,447856,1824.3,876328977
BEIS,Met Office,2020-10-15,04 CONTRACTORS,CORPORATE,WA CONSULTANTS LTD,447857,5368.08,876328977
BEIS,Met Office,2020-10-15,04 CONTRACTORS,CHIEF FINANCIAL OFFICER,WA CONSULTANTS LTD,447858,3663,876328977
BEIS,Met Office,2020-10-15,04 CONTRACTORS,GOVERNMENT SERVICES,WA CONSULTANTS LTD,447876,2178,876328977
BEIS,Met Office,2020-10-15,04 CONTRACTORS,TECHNOLOGY,WA CONSULTANTS LTD,447885,13000,876328977
BEIS,Met Office,2020-10-15,04 CONTRACTORS,STRATEGIC INVESTMENT,WA CONSULTANTS LTD,447890,10845.36,876328977
BEIS,Met Office,2020-10-16,11 SERVICES,GOVERNMENT SERVICES,FCDO,447811,84.54,888813560
BEIS,Met Office,2020-10-20,11 SERVICES,SCIENCE,A I MEDIA,447960,126,994262974
BEIS,Met Office,2020-10-20,06 ACCOMMODATION,CHIEF FINANCIAL OFFICER,ABOVE THE REST COMMERCIAL CLEANING LTD,447739,565,166969348
BEIS,Met Office,2020-10-20,06 ACCOMMODATION,CHIEF FINANCIAL OFFICER,ABOVE THE REST COMMERCIAL CLEANING LTD,447740,38,166969348
BEIS,Met Office,2020-10-20,11 SERVICES,GOVERNMENT SERVICES,ACCELERATION EMARKETING,447777,3342.3,848940776
BEIS,Met Office,2020-10-20,11 SERVICES,CORPORATE,ADJUST,447966,1780,-
BEIS,Met Office,2020-10-20,11 SERVICES,CHIEF FINANCIAL OFFICER,ANVIL MOBILE LIMITED,447794,356.93,981686175
BEIS,Met Office,2020-10-20,11 SERVICES,OPERATIONS,ASPIRE EUROPE LTD,447964,9166,841124953
BEIS,Met Office,2020-10-20,11 SERVICES,TECHNOLOGY,BAE SYSTEMS APPLIED INTELLIGENCE LIMITED,447955,9393.75,GB641407169
BEIS,Met Office,2020-10-20,11 SERVICES,TECHNOLOGY,BAE SYSTEMS APPLIED INTELLIGENCE LIMITED,447956,10279.76,GB641407169
BEIS,Met Office,2020-10-20,11 SERVICES,STRATEGIC INVESTMENT,BAE SYSTEMS APPLIED INTELLIGENCE LIMITED,447957,15946,GB641407169
BEIS,Met Office,2020-10-20,06 ACCOMMODATION,CHIEF FINANCIAL OFFICER,BIDVEST NOONAN UK LTD,447808,387.16,GB847176988
BEIS,Met Office,2020-10-20,06 ACCOMMODATION,CHIEF FINANCIAL OFFICER,BIDVEST NOONAN UK LTD,447834,871.43,GB847176988
BEIS,Met Office,2020-10-20,04 CONTRACTORS,STRATEGIC INVESTMENT,BJSS LIMITED,447814,13600,613295452
BEIS,Met Office,2020-10-20,06 ACCOMMODATION,CHIEF FINANCIAL OFFICER,BRITISH GAS TRADING LTD,447891,4849.01,684966762
BEIS,Met Office,2020-10-20,06 ACCOMMODATION,CHIEF FINANCIAL OFFICER,BRITISH GAS TRADING LTD,447892,5091.14,684966762
BEIS,Met Office,2020-10-20,11 SERVICES,CORPORATE,BW TRAINING LTD,447795,250,-
BEIS,Met Office,2020-10-20,11 SERVICES,OPERATIONS,CARDIFF SCHOOL OF HEALTH SCIENCES,447945,4633.2,542915736
BEIS,Met Office,2020-10-20,11 SERVICES,OPERATIONS,CARTUS LTD,442453,110,768489458
BEIS,Met Office,2020-10-20,03 STAFF COSTS T&S,OPERATIONS,CARTUS LTD,447798,1447.34,768489458
BEIS,Met Office,2020-10-20,11 SERVICES,OPERATIONS,CARTUS LTD,447801,4656.5,768489458
BEIS,Met Office,2020-10-20,03 STAFF COSTS T&S,OPERATIONS,CARTUS LTD,447850,712.28,768489458
BEIS,Met Office,2020-10-20,03 STAFF COSTS T&S,OPERATIONS,CARTUS LTD,447884,753,768489458
BEIS,Met Office,2020-10-20,11 SERVICES,TECHNOLOGY,CLOUDREACH EUROPE LIMITED,447942,4000,978187168
BEIS,Met Office,2020-10-20,11 SERVICES,TECHNOLOGY,CLOUDREACH EUROPE LIMITED,447943,7138.43,978187168
BEIS,Met Office,2020-10-20,11 SERVICES,OPERATIONS,CLOUDREACH EUROPE LIMITED,447944,7138.43,978187168
BEIS,Met Office,2020-10-20,08 SOFTWARE LICENCES,TECHNOLOGY,COMPUTACENTER (UK) LTD,447950,2111.68,490334648
BEIS,Met Office,2020-10-20,08 SOFTWARE LICENCES,TECHNOLOGY,COMPUTACENTER (UK) LTD,447950,0,490334648
BEIS,Met Office,2020-10-20,08 SOFTWARE LICENCES,TECHNOLOGY,COMPUTACENTER (UK) LTD,447950,7857.74,490334648
BEIS,Met Office,2020-10-20,06 ACCOMMODATION,CHIEF FINANCIAL OFFICER,CORONA ENERGY LTD,447888,600.95,577704800
BEIS,Met Office,2020-10-20,06 ACCOMMODATION,CHIEF FINANCIAL OFFICER,CORONA ENERGY LTD,447897,11085.86,577704800
BEIS,Met Office,2020-10-20,11 SERVICES,OPERATIONS,EAST RIDING OF YORKSHIRE COUNCIL IHA,447774,1687.4,647471123
BEIS,Met Office,2020-10-20,06 ACCOMMODATION,CHIEF FINANCIAL OFFICER,EDF ENERGY CUSTOMERS PLC,447970,2829.38,523041202
BEIS,Met Office,2020-10-20,11 SERVICES,CHIEF FINANCIAL OFFICER,EXPONENTIAL-E,447866,-3281.55,GB798572653
BEIS,Met Office,2020-10-20,11 SERVICES,CHIEF FINANCIAL OFFICER,EXPONENTIAL-E,447880,4761.66,GB798572653
BEIS,Met Office,2020-10-20,11 SERVICES,CHIEF FINANCIAL OFFICER,EXPONENTIAL-E,447880,2970,GB798572653
BEIS,Met Office,2020-10-20,03 STAFF COSTS T&S,OPERATIONS,FALKLAND ISLAND COMPANY LTD,447713,2601.9,N/A
BEIS,Met Office,2020-10-20,03 STAFF COSTS T&S,OPERATIONS,FALKLAND ISLAND COMPANY LTD,447715,12.25,N/A
BEIS,Met Office,2020-10-20,11 SERVICES,CHIEF FINANCIAL OFFICER,GAMMA BUSINESS COMMUNICATIONS LTD,447786,413.1,823820344
BEIS,Met Office,2020-10-20,11 SERVICES,CHIEF FINANCIAL OFFICER,GIBRALTAR NYNEX COMMUNICATIONS LTD,447879,646,NOVAT
BEIS,Met Office,2020-10-20,11 SERVICES,CHIEF FINANCIAL OFFICER,GIBRALTAR NYNEX COMMUNICATIONS LTD,447883,740.65,NOVAT
BEIS,Met Office,2020-10-20,11 SERVICES,CORPORATE,HAWK INCENTIVES LTD,447948,7225,238839422
BEIS,Met Office,2020-10-20,11 SERVICES,CORPORATE,HAWK INCENTIVES LTD,447948,361.25,238839422
BEIS,Met Office,2020-10-20,11 SERVICES,CORPORATE,Landmark Information Group Ltd,447963,73551.67,634509735
BEIS,Met Office,2020-10-20,11 SERVICES,GOVERNMENT SERVICES,NAVIGATOR RESEARCH PLANNING COMMUNICATION LTD,447949,3950,628317730
BEIS,Met Office,2020-10-20,11 SERVICES,GOVERNMENT SERVICES,NAVIGATOR RESEARCH PLANNING COMMUNICATION LTD,447949,7100,628317730
BEIS,Met Office,2020-10-20,06 ACCOMMODATION,CHIEF FINANCIAL OFFICER,NESS ENGINEERING LTD,444289,425.78,430188472
BEIS,Met Office,2020-10-20,06 ACCOMMODATION,CHIEF FINANCIAL OFFICER,NESS ENGINEERING LTD,444306,425.78,430188472
BEIS,Met Office,2020-10-20,13 MISCELLANEOUS,GOVERNMENT SERVICES,POLICY CONNECT LTD,447878,350,665428806
BEIS,Met Office,2020-10-20,13 MISCELLANEOUS,CHIEF FINANCIAL OFFICER,POSTURITE (UK) LTD,447785,49.59,583565114
BEIS,Met Office,2020-10-20,13 MISCELLANEOUS,CHIEF FINANCIAL OFFICER,POSTURITE (UK) LTD,447875,63.23,583565114
BEIS,Met Office,2020-10-20,13 MISCELLANEOUS,CHIEF FINANCIAL OFFICER,POSTURITE (UK) LTD,447958,488.59,583565114
BEIS,Met Office,2020-10-20,06 ACCOMMODATION,CHIEF FINANCIAL OFFICER,POWER NI ENERGY LTD,447971,117.81,617518142
BEIS,Met Office,2020-10-20,04 CONTRACTORS,STRATEGIC INVESTMENT,QUALSERV CONSULTING LTD,447906,10897.92,719067718
BEIS,Met Office,2020-10-20,04 CONTRACTORS,STRATEGIC INVESTMENT,QUALSERV CONSULTING LTD,447907,8100,719067718
BEIS,Met Office,2020-10-20,04 CONTRACTORS,TECHNOLOGY,QUALSERV CONSULTING LTD,447908,11038.62,719067718
BEIS,Met Office,2020-10-20,04 CONTRACTORS,TECHNOLOGY,QUALSERV CONSULTING LTD,447909,4550,719067718
BEIS,Met Office,2020-10-20,04 CONTRACTORS,CHIEF FINANCIAL OFFICER,QUALSERV CONSULTING LTD,447968,6440.59,719067718
BEIS,Met Office,2020-10-20,11 SERVICES,OPERATIONS,QUEEN'S UNIVERSITY BELFAST,447961,4633,GB 254 7995 11
BEIS,Met Office,2020-10-20,11 SERVICES,CORPORATE,REACTED PERSONAL DATA,447373,1245,143043312
BEIS,Met Office,2020-10-20,06 ACCOMMODATION,CHIEF FINANCIAL OFFICER,REACTED PERSONAL DATA,447738,11548.25,N/A
BEIS,Met Office,2020-10-20,06 ACCOMMODATION,CHIEF FINANCIAL OFFICER,REACTED PERSONAL DATA,447780,180.25,655585009
BEIS,Met Office,2020-10-20,06 ACCOMMODATION,CHIEF FINANCIAL OFFICER,REACTED PERSONAL DATA,447780,180.25,655585009
BEIS,Met Office,2020-10-20,06 ACCOMMODATION,CHIEF FINANCIAL OFFICER,REACTED PERSONAL DATA,447780,180.25,655585009
BEIS,Met Office,2020-10-20,06 ACCOMMODATION,CHIEF FINANCIAL OFFICER,REACTED PERSONAL DATA,447780,180.25,655585009
BEIS,Met Office,2020-10-20,06 ACCOMMODATION,CHIEF FINANCIAL OFFICER,REACTED PERSONAL DATA,447780,180.25,655585009
BEIS,Met Office,2020-10-20,06 ACCOMMODATION,CHIEF FINANCIAL OFFICER,REACTED PERSONAL DATA,447780,180.25,655585009
BEIS,Met Office,2020-10-20,06 ACCOMMODATION,CHIEF FINANCIAL OFFICER,REACTED PERSONAL DATA,447780,180.25,655585009
BEIS,Met Office,2020-10-20,06 ACCOMMODATION,CHIEF FINANCIAL OFFICER,REACTED PERSONAL DATA,447780,180.25,655585009
BEIS,Met Office,2020-10-20,06 ACCOMMODATION,CHIEF FINANCIAL OFFICER,RIVER RIDGE,447845,108.98,176286083
BEIS,Met Office,2020-10-20,06 ACCOMMODATION,CHIEF FINANCIAL OFFICER,Severn Trent Water Ltd,447969,18.48,486985565
BEIS,Met Office,2020-10-20,06 ACCOMMODATION,CHIEF FINANCIAL OFFICER,SOUTH WEST WATER LTD,447889,4163.34,236873674
BEIS,Met Office,2020-10-20,06 ACCOMMODATION,CHIEF FINANCIAL OFFICER,ST MODWEN VENTURES LTD,447872,9.72,975081008
BEIS,Met Office,2020-10-20,11 SERVICES,CHIEF FINANCIAL OFFICER,SURE SOUTH ATLANTIC LTD,447799,591.15,-
BEIS,Met Office,2020-10-20,11 SERVICES,CHIEF FINANCIAL OFFICER,SURE SOUTH ATLANTIC LTD,447803,4743,-
BEIS,Met Office,2020-10-20,11 SERVICES,CHIEF FINANCIAL OFFICER,TELEFONICA O2 UK LIMITED,447783,8274.04,778603785
BEIS,Met Office,2020-10-20,06 ACCOMMODATION,CHIEF FINANCIAL OFFICER,TULLY FARM HOLDINGS T/A CONTRACT SERVICES,442166,300,872632707
BEIS,Met Office,2020-10-20,11 SERVICES,GOVERNMENT SERVICES,University Of Leeds,447161,21085,613451470
BEIS,Met Office,2020-10-20,04 CONTRACTORS,TECHNOLOGY,WA CONSULTANTS LTD,447498,15600,876328977
BEIS,Met Office,2020-10-20,04 CONTRACTORS,STRATEGIC INVESTMENT,WA CONSULTANTS LTD,447962,8314.78,876328977
BEIS,Met Office,2020-10-21,11 SERVICES,OPERATIONS,"EUTELSAT MADERIA, UNIPESSOAL LDA",21826,2367.18,PT511283733
BEIS,Met Office,2020-10-21,08 SOFTWARE LICENCES,TECHNOLOGY,GITHUB INC,9941,930.91,-
BEIS,Met Office,2020-10-21,08 SOFTWARE LICENCES,TECHNOLOGY,GITHUB INC,9942,154.31,-
BEIS,Met Office,2020-10-21,08 SOFTWARE LICENCES,GOVERNMENT SERVICES,"IBL SOFTWARE ENGINEERING, SPOL S.R.O.",21812,3517.86,SK2020241883
BEIS,Met Office,2020-10-21,11 SERVICES,GOVERNMENT SERVICES,"IBL SOFTWARE ENGINEERING, SPOL S.R.O.",445878,5655.87,SK2020241883
BEIS,Met Office,2020-10-21,11 SERVICES,GOVERNMENT SERVICES,IGAD CLIMATE PREDICTION & APPLICATIONS CNTR,448012,14020,-
BEIS,Met Office,2020-10-21,11 SERVICES,SCIENCE,REGENTS OF THE UNIVERSITY OF COLORADO,21822,13727.34,-
BEIS,Met Office,2020-10-21,07 EQUIPMENT,OPERATIONS,VAISALA OYJ,21774,30938.46,FI01244162
BEIS,Met Office,2020-10-22,06 ACCOMMODATION,CHIEF FINANCIAL OFFICER,A & J GARDEN SERVICES LTD,448136,72,190817003
BEIS,Met Office,2020-10-22,06 ACCOMMODATION,CHIEF FINANCIAL OFFICER,A & J GARDEN SERVICES LTD,448136,165,190817003
BEIS,Met Office,2020-10-22,06 ACCOMMODATION,CHIEF FINANCIAL OFFICER,A & J GARDEN SERVICES LTD,448136,78,190817003
BEIS,Met Office,2020-10-22,06 ACCOMMODATION,CHIEF FINANCIAL OFFICER,A & J GARDEN SERVICES LTD,448136,100,190817003
BEIS,Met Office,2020-10-22,06 ACCOMMODATION,CHIEF FINANCIAL OFFICER,A & J GARDEN SERVICES LTD,448136,78,190817003
BEIS,Met Office,2020-10-22,06 ACCOMMODATION,CHIEF FINANCIAL OFFICER,A & J GARDEN SERVICES LTD,448136,100,190817003
BEIS,Met Office,2020-10-22,06 ACCOMMODATION,CHIEF FINANCIAL OFFICER,A & J GARDEN SERVICES LTD,448136,100,190817003
BEIS,Met Office,2020-10-22,06 ACCOMMODATION,CHIEF FINANCIAL OFFICER,A & J GARDEN SERVICES LTD,448136,100,190817003
BEIS,Met Office,2020-10-22,06 ACCOMMODATION,CHIEF FINANCIAL OFFICER,A & J GARDEN SERVICES LTD,448136,78,190817003
BEIS,Met Office,2020-10-22,06 ACCOMMODATION,CHIEF FINANCIAL OFFICER,A & J GARDEN SERVICES LTD,448136,100,190817003
BEIS,Met Office,2020-10-22,06 ACCOMMODATION,CHIEF FINANCIAL OFFICER,A & J GARDEN SERVICES LTD,448136,500,190817003
BEIS,Met Office,2020-10-22,06 ACCOMMODATION,CHIEF FINANCIAL OFFICER,A & J GARDEN SERVICES LTD,448136,78,190817003
BEIS,Met Office,2020-10-22,06 ACCOMMODATION,CHIEF FINANCIAL OFFICER,A & J GARDEN SERVICES LTD,448136,78,190817003
BEIS,Met Office,2020-10-22,06 ACCOMMODATION,CHIEF FINANCIAL OFFICER,A & J GARDEN SERVICES LTD,448136,55,190817003
BEIS,Met Office,2020-10-22,06 ACCOMMODATION,CHIEF FINANCIAL OFFICER,A & J GARDEN SERVICES LTD,448136,100,190817003
BEIS,Met Office,2020-10-22,06 ACCOMMODATION,CHIEF FINANCIAL OFFICER,A & J GARDEN SERVICES LTD,448136,78,190817003
BEIS,Met Office,2020-10-22,06 ACCOMMODATION,CHIEF FINANCIAL OFFICER,A & J GARDEN SERVICES LTD,448136,100,190817003
BEIS,Met Office,2020-10-22,11 SERVICES,CHIEF FINANCIAL OFFICER,ADAM PHONES LTD,448092,342,538877093
BEIS,Met Office,2020-10-22,11 SERVICES,CHIEF FINANCIAL OFFICER,ALLSTAR BUSINESS SOLUTIONS LTD,448101,2480.28,747880191
BEIS,Met Office,2020-10-22,11 SERVICES,OPERATIONS,APPLIED SATELLITE TECHNOLOGY SYSTEMS LTD,448125,289.28,720108683
BEIS,Met Office,2020-10-22,12 INTERNATIONAL,OPERATIONS,APPLIED SATELLITE TECHNOLOGY SYSTEMS LTD,448129,32.4,720108683
BEIS,Met Office,2020-10-22,11 SERVICES,OPERATIONS,APPLIED SATELLITE TECHNOLOGY SYSTEMS LTD,448132,245.81,720108683
BEIS,Met Office,2020-10-22,11 SERVICES,OPERATIONS,ASPIRE EUROPE LTD,448151,2500,841124953
BEIS,Met Office,2020-10-22,06 ACCOMMODATION,CHIEF FINANCIAL OFFICER,Biffa Waste Services Ltd,448118,186.3,537911627
BEIS,Met Office,2020-10-22,11 SERVICES,CHIEF FINANCIAL OFFICER,BT GLOBAL SERVICES,448079,15157.28,245719348
BEIS,Met Office,2020-10-22,10 EQUIPMENT MAINTENANCE,OPERATIONS,C K COMMERCIALS LTD,448180,1250,456211956
BEIS,Met Office,2020-10-22,11 SERVICES,GOVERNMENT SERVICES,CAMBRIDGE ENVIRONMENTAL RESEARCH CONSULTANTS,447946,68596,GB424750755
BEIS,Met Office,2020-10-22,06 ACCOMMODATION,CHIEF FINANCIAL OFFICER,CBRE MANAGED SERVICES LTD,448139,6649.73,853936883
BEIS,Met Office,2020-10-22,06 ACCOMMODATION,CHIEF FINANCIAL OFFICER,CBRE MANAGED SERVICES LTD,448140,49234.89,853936883
BEIS,Met Office,2020-10-22,06 ACCOMMODATION,CHIEF FINANCIAL OFFICER,CBRE MANAGED SERVICES LTD,448141,43710.11,853936883
BEIS,Met Office,2020-10-22,06 ACCOMMODATION,CHIEF FINANCIAL OFFICER,CBRE MANAGED SERVICES LTD,448144,141916.1,853936883
BEIS,Met Office,2020-10-22,08 SOFTWARE LICENCES,CHIEF FINANCIAL OFFICER,CEMAR,448176,90,915042161
BEIS,Met Office,2020-10-22,08 SOFTWARE LICENCES,CHIEF FINANCIAL OFFICER,CEMAR,448188,450,915042161
BEIS,Met Office,2020-10-22,07 EQUIPMENT,SCIENCE,COVE INDUSTRIAL ENTERPRISES LTD,448126,821,211984272
BEIS,Met Office,2020-10-22,12 INTERNATIONAL,OPERATIONS,CROWN AGENTS BANK,448116,13230.18,-
BEIS,Met Office,2020-10-22,CYCLESCHEME,OTHER,CYCLESCHEME LTD,448080,833.33,850403556
BEIS,Met Office,2020-10-22,11 SERVICES,GOVERNMENT SERVICES,DBS FINANCE RECEIPTS CTS,448075,971.23,888805068
BEIS,Met Office,2020-10-22,11 SERVICES,GOVERNMENT SERVICES,DBS FINANCE RECEIPTS CTS,448156,13037.93,888805068
BEIS,Met Office,2020-10-22,11 SERVICES,GOVERNMENT SERVICES,DJS RESEARCH LIMITED,448142,9894,775718779
BEIS,Met Office,2020-10-22,11 SERVICES,GOVERNMENT SERVICES,DJS RESEARCH LIMITED,448148,29725,775718779
BEIS,Met Office,2020-10-22,03 STAFF COSTS T&S,CHIEF FINANCIAL OFFICER,ENTERPRISE RENT A CAR UK LTD,448111,285.04,215557314
BEIS,Met Office,2020-10-22,03 STAFF COSTS T&S,CHIEF FINANCIAL OFFICER,ENTERPRISE RENT A CAR UK LTD,448157,908.55,215557314
BEIS,Met Office,2020-10-22,06 ACCOMMODATION,CHIEF FINANCIAL OFFICER,EXCEL AV LIMITED,448028,455.88,994305005
BEIS,Met Office,2020-10-22,03 STAFF COSTS T&S,OPERATIONS,FALKLAND ISLAND COMPANY LTD,448024,700,N/A
BEIS,Met Office,2020-10-22,03 STAFF COSTS T&S,OPERATIONS,FALKLAND ISLAND COMPANY LTD,448154,700,N/A
BEIS,Met Office,2020-10-22,03 STAFF COSTS T&S,OPERATIONS,FALKLAND ISLAND COMPANY LTD,448155,700,N/A
BEIS,Met Office,2020-10-22,04 CONTRACTORS,TECHNOLOGY,FDM GROUP LIMITED,448014,5400,583540529
BEIS,Met Office,2020-10-22,04 CONTRACTORS,TECHNOLOGY,FDM GROUP LIMITED,448015,3780,583540529
BEIS,Met Office,2020-10-22,04 CONTRACTORS,TECHNOLOGY,FDM GROUP LIMITED,448016,5940,583540529
BEIS,Met Office,2020-10-22,04 CONTRACTORS,TECHNOLOGY,FDM GROUP LIMITED,448017,5130,583540529
BEIS,Met Office,2020-10-22,04 CONTRACTORS,TECHNOLOGY,FDM GROUP LIMITED,448018,3780,583540529
BEIS,Met Office,2020-10-22,11 SERVICES,CHIEF FINANCIAL OFFICER,GAMMA TELECOM LTD,447778,211.3,823820344
BEIS,Met Office,2020-10-22,11 SERVICES,CHIEF FINANCIAL OFFICER,GAMMA TELECOM LTD,447778,30182.69,823820344
BEIS,Met Office,2020-10-22,11 SERVICES,CORPORATE,HAWK INCENTIVES LTD,448117,3100,238839422
BEIS,Met Office,2020-10-22,11 SERVICES,CORPORATE,HAWK INCENTIVES LTD,448117,155,238839422
BEIS,Met Office,2020-10-22,04 CONTRACTORS,CORPORATE,HAYS SPECIALIST RECRUITMENT LTD,448006,658.25,773695871
BEIS,Met Office,2020-10-22,04 CONTRACTORS,TECHNOLOGY,HAYS SPECIALIST RECRUITMENT LTD,448007,566.25,773695871
BEIS,Met Office,2020-10-22,04 CONTRACTORS,CORPORATE,HAYS SPECIALIST RECRUITMENT LTD,448008,634.67,773695871
BEIS,Met Office,2020-10-22,04 CONTRACTORS,TECHNOLOGY,HAYS SPECIALIST RECRUITMENT LTD,448009,558.7,773695871
BEIS,Met Office,2020-10-22,04 CONTRACTORS,GOVERNMENT SERVICES,HAYS SPECIALIST RECRUITMENT LTD,448010,183.08,773695871
BEIS,Met Office,2020-10-22,04 CONTRACTORS,CORPORATE,HAYS SPECIALIST RECRUITMENT LTD,448011,488.2,773695871
BEIS,Met Office,2020-10-22,04 CONTRACTORS,CORPORATE,HAYS SPECIALIST RECRUITMENT LTD,448087,610.27,773695871
BEIS,Met Office,2020-10-22,04 CONTRACTORS,GOVERNMENT SERVICES,HAYS SPECIALIST RECRUITMENT LTD,448088,366.16,773695871
BEIS,Met Office,2020-10-22,11 SERVICES,TECHNOLOGY,IBM UNITED KINGDOM LTD,448089,6062.7,107328000
BEIS,Met Office,2020-10-22,13 MISCELLANEOUS,SCIENCE,IMPERIAL COLLEGE,448112,333,649926678
BEIS,Met Office,2020-10-22,11 SERVICES,OPERATIONS,INK COPYWRITERS LTD,446355,2250,850847214
BEIS,Met Office,2020-10-22,06 ACCOMMODATION,OPERATIONS,INMARSAT SOLUTIONS (CANADA) INC,447429,850.52,766144223
BEIS,Met Office,2020-10-22,11 SERVICES,CHIEF FINANCIAL OFFICER,INTEROUTE COMMUNICATIONS LIMITED,448026,4931.94,832 7071 39
BEIS,Met Office,2020-10-22,11 SERVICES,GOVERNMENT SERVICES,JEREMY BENN ASSOCIATES LIMITED,448078,12240,GB 665300941
BEIS,Met Office,2020-10-22,04 CONTRACTORS,GOVERNMENT SERVICES,JOBSEEKERS RECRUITMENT SERVICES LTD,448120,170.05,130 1297 14
BEIS,Met Office,2020-10-22,04 CONTRACTORS,CORPORATE,JOBSEEKERS RECRUITMENT SERVICES LTD,448121,663.78,130 1297 14
BEIS,Met Office,2020-10-22,04 CONTRACTORS,GOVERNMENT SERVICES,JOBSEEKERS RECRUITMENT SERVICES LTD,448122,662.3,130 1297 14
BEIS,Met Office,2020-10-22,04 CONTRACTORS,GOVERNMENT SERVICES,JOBSEEKERS RECRUITMENT SERVICES LTD,448123,779.28,130 1297 14
BEIS,Met Office,2020-10-22,04 CONTRACTORS,GOVERNMENT SERVICES,JOBSEEKERS RECRUITMENT SERVICES LTD,448128,519.1,130 1297 14
BEIS,Met Office,2020-10-22,04 CONTRACTORS,OPERATIONS,JOBSEEKERS RECRUITMENT SERVICES LTD,448130,344.03,130 1297 14
BEIS,Met Office,2020-10-22,11 SERVICES,CORPORATE,Landmark Information Group Ltd,448145,85897.15,634509735
BEIS,Met Office,2020-10-22,07 EQUIPMENT,OPERATIONS,M C ENGINEERING SERVICES,448143,393.14,813172066
BEIS,Met Office,2020-10-22,07 EQUIPMENT,CHIEF FINANCIAL OFFICER,NATWEST COMMERCIAL CARDS DIVISION,448102,6282.97,N/A
BEIS,Met Office,2020-10-22,TRADE CREDITORS,OTHER,NATWEST COMMERCIAL CARDS DIVISION,448103,134498.04,N/A
BEIS,Met Office,2020-10-22,11 SERVICES,SCIENCE,Plymouth Marine Laboratory,447829,30000,927105830
BEIS,Met Office,2020-10-22,13 MISCELLANEOUS,CHIEF FINANCIAL OFFICER,POSTURITE (UK) LTD,448076,294.88,583565114
BEIS,Met Office,2020-10-22,13 MISCELLANEOUS,CHIEF FINANCIAL OFFICER,POSTURITE (UK) LTD,448090,73.72,583565114
BEIS,Met Office,2020-10-22,13 MISCELLANEOUS,CHIEF FINANCIAL OFFICER,POSTURITE (UK) LTD,448138,183.97,583565114
BEIS,Met Office,2020-10-22,11 SERVICES,OPERATIONS,Public Health England,447947,1440,155579377
BEIS,Met Office,2020-10-22,11 SERVICES,OPERATIONS,REACTED PERSONAL DATA,448029,1400,262883631
BEIS,Met Office,2020-10-22,06 ACCOMMODATION,CHIEF FINANCIAL OFFICER,REACTED PERSONAL DATA,448135,950,899936427
BEIS,Met Office,2020-10-22,06 ACCOMMODATION,CHIEF FINANCIAL OFFICER,REACTED PERSONAL DATA,448147,95,899936427
BEIS,Met Office,2020-10-22,06 ACCOMMODATION,CHIEF FINANCIAL OFFICER,RIVER RIDGE,448134,25,176286083
BEIS,Met Office,2020-10-22,11 SERVICES,GOVERNMENT SERVICES,SOCIAL SENSING LTD,448020,2758,-
BEIS,Met Office,2020-10-22,11 SERVICES,CHIEF FINANCIAL OFFICER,SURE SOUTH ATLANTIC LTD,448074,628.03,NOVATREG
BEIS,Met Office,2020-10-22,11 SERVICES,CHIEF FINANCIAL OFFICER,SURE SOUTH ATLANTIC LTD (ST HELENA),448150,1962.18,30005
BEIS,Met Office,2020-10-22,11 SERVICES,CORPORATE,SWANTECH LOGISTICS LTD,447431,1983.4,769332401
BEIS,Met Office,2020-10-22,06 ACCOMMODATION,CHIEF FINANCIAL OFFICER,TEAM MAINTENANCE SERVICES LTD,448077,1495,744909406
BEIS,Met Office,2020-10-22,06 ACCOMMODATION,CHIEF FINANCIAL OFFICER,THORNLEY WILDLIFE SERVICES,448084,160,N/A
BEIS,Met Office,2020-10-22,08 SOFTWARE LICENCES,OTHER,TIMEWATCH PLC,448189,916.67,461555250
BEIS,Met Office,2020-10-22,07 EQUIPMENT,OPERATIONS,Trinity House,448027,842,243120414
BEIS,Met Office,2020-10-22,11 SERVICES,OPERATIONS,Trinity House,448100,2000,243120414
BEIS,Met Office,2020-10-22,13 MISCELLANEOUS,SCIENCE,University Of Leeds,447570,1500,613451470
BEIS,Met Office,2020-10-22,11 SERVICES,GOVERNMENT SERVICES,University Of Reading,448085,28924.2,200012659
BEIS,Met Office,2020-10-22,13 MISCELLANEOUS,SCIENCE,University Of Reading,448178,1166.66,200012659
BEIS,Met Office,2020-10-22,04 CONTRACTORS,GOVERNMENT SERVICES,WA CONSULTANTS LTD,448091,2178,876328977
BEIS,Met Office,2020-10-22,04 CONTRACTORS,CHIEF FINANCIAL OFFICER,WA CONSULTANTS LTD,448094,2565,876328977
BEIS,Met Office,2020-10-22,04 CONTRACTORS,TECHNOLOGY,WA CONSULTANTS LTD,448095,10347.6,876328977
BEIS,Met Office,2020-10-22,04 CONTRACTORS,TECHNOLOGY,WA CONSULTANTS LTD,448096,11054.77,876328977
BEIS,Met Office,2020-10-22,04 CONTRACTORS,CHIEF FINANCIAL OFFICER,WA CONSULTANTS LTD,448097,9994,876328977
BEIS,Met Office,2020-10-22,04 CONTRACTORS,CHIEF FINANCIAL OFFICER,WA CONSULTANTS LTD,448098,6439.85,876328977
BEIS,Met Office,2020-10-22,04 CONTRACTORS,CHIEF FINANCIAL OFFICER,WA CONSULTANTS LTD,448099,13875,876328977
BEIS,Met Office,2020-10-22,11 SERVICES,OPERATIONS,WORLDPAY LTD,448165,22.35,991280207
BEIS,Met Office,2020-10-22,11 SERVICES,OPERATIONS,WORLDPAY LTD,448166,22.35,991280207
BEIS,Met Office,2020-10-22,11 SERVICES,OPERATIONS,WORLDPAY LTD,448167,22.85,991280207
BEIS,Met Office,2020-10-22,11 SERVICES,OPERATIONS,WORLDPAY LTD,448187,22.55,991280207
BEIS,Met Office,2020-10-22,10 EQUIPMENT MAINTENANCE,OPERATIONS,YOUNG CALIBRATION LIMITED,448113,1480,673900720
BEIS,Met Office,2020-10-22,11 SERVICES,OPERATIONS,YOUNG CALIBRATION LIMITED,448113,10,673900720
BEIS,Met Office,2020-10-27,11 SERVICES,BUSINESS GROUP,AEROSPACE & MARINE INTERNATIONAL (UK) LIMITED,448185,18000,GB 856729086
BEIS,Met Office,2020-10-27,11 SERVICES,OPERATIONS,APPLIED SATELLITE TECHNOLOGY SYSTEMS LTD,448133,32.4,720108683
BEIS,Met Office,2020-10-27,11 SERVICES,OPERATIONS,APPLIED SATELLITE TECHNOLOGY SYSTEMS LTD,448158,11396.07,720108683
BEIS,Met Office,2020-10-27,06 ACCOMMODATION,CHIEF FINANCIAL OFFICER,BAE SYSTEMS MARINE LTD,448146,120,641407169
BEIS,Met Office,2020-10-27,11 SERVICES,GOVERNMENT SERVICES,BITPOD LIMITED,448083,6087.12,124 9359 03
BEIS,Met Office,2020-10-27,11 SERVICES,CHIEF FINANCIAL OFFICER,BT GLOBAL SERVICES,448206,17627.68,245719348
BEIS,Met Office,2020-10-27,11 SERVICES,CHIEF FINANCIAL OFFICER,BT PLC,448205,13881,245719348
BEIS,Met Office,2020-10-27,06 ACCOMMODATION,CHIEF FINANCIAL OFFICER,CALOR GAS LIMITED,448210,922.23,207610984
BEIS,Met Office,2020-10-27,06 ACCOMMODATION,CHIEF FINANCIAL OFFICER,CALOR GAS LIMITED,448325,19.61,207610984
BEIS,Met Office,2020-10-27,06 ACCOMMODATION,CHIEF FINANCIAL OFFICER,CALOR GAS LIMITED,448326,34.25,207610984
BEIS,Met Office,2020-10-27,11 SERVICES,GOVERNMENT SERVICES,CAMBRIDGE ECONOMETRICS LTD,448124,53727.8,1916825
BEIS,Met Office,2020-10-27,07 EQUIPMENT,OPERATIONS,Campbell Scientific Ltd,448082,18,428453933
BEIS,Met Office,2020-10-27,07 EQUIPMENT,OPERATIONS,Campbell Scientific Ltd,448082,2835,428453933
BEIS,Met Office,2020-10-27,INFORMATION TECHNOLOGY,TECHNOLOGY,COMPUTACENTER (UK) LTD,448030,11229.48,490334648
BEIS,Met Office,2020-10-27,06 ACCOMMODATION,CHIEF FINANCIAL OFFICER,COUNTRYWIDE GROUNDS MAINTENANCE LTD,448304,171.9,611731279
BEIS,Met Office,2020-10-27,06 ACCOMMODATION,CHIEF FINANCIAL OFFICER,COUNTRYWIDE GROUNDS MAINTENANCE LTD,448305,128.22,611731279
BEIS,Met Office,2020-10-27,12 INTERNATIONAL,OPERATIONS,CROWN AGENTS BANK,448186,11738.85,-
BEIS,Met Office,2020-10-27,03 STAFF COSTS T&S,OPERATIONS,DBS FINANCE RECEIPTS CTS,448273,3242,888805068
BEIS,Met Office,2020-10-27,03 STAFF COSTS T&S,OPERATIONS,DBS FINANCE RECEIPTS CTS,448274,4045,888805068
BEIS,Met Office,2020-10-27,06 ACCOMMODATION,CHIEF FINANCIAL OFFICER,EDF ENERGY CUSTOMERS PLC,443620,6985.99,523041202
BEIS,Met Office,2020-10-27,10 EQUIPMENT MAINTENANCE,OPERATIONS,EQUINOX INSTRUMENTS LTD,448301,9260,865954274
BEIS,Met Office,2020-10-27,11 SERVICES,OPERATIONS,EQUINOX INSTRUMENTS LTD,448301,100,865954274
BEIS,Met Office,2020-10-27,06 ACCOMMODATION,CHIEF FINANCIAL OFFICER,Exeter City Council,440196,140288,142335594
BEIS,Met Office,2020-10-27,FIXTURE & FITTINGS,CHIEF FINANCIAL OFFICER,FMS INTERIOR SERVICES LTD,448137,426.4,922056940
BEIS,Met Office,2020-10-27,FIXTURE & FITTINGS,CHIEF FINANCIAL OFFICER,FMS INTERIOR SERVICES LTD,448137,12412.2,922056940
BEIS,Met Office,2020-10-27,FIXTURE & FITTINGS,CHIEF FINANCIAL OFFICER,FMS INTERIOR SERVICES LTD,448137,1239,922056940
BEIS,Met Office,2020-10-27,FIXTURE & FITTINGS,CHIEF FINANCIAL OFFICER,FMS INTERIOR SERVICES LTD,448137,445.6,922056940
BEIS,Met Office,2020-10-27,FIXTURE & FITTINGS,CHIEF FINANCIAL OFFICER,FMS INTERIOR SERVICES LTD,448137,846,922056940
BEIS,Met Office,2020-10-27,FIXTURE & FITTINGS,CHIEF FINANCIAL OFFICER,FMS INTERIOR SERVICES LTD,448137,461.07,922056940
BEIS,Met Office,2020-10-27,FIXTURE & FITTINGS,CHIEF FINANCIAL OFFICER,FMS INTERIOR SERVICES LTD,448159,189,922056940
BEIS,Met Office,2020-10-27,04 CONTRACTORS,TECHNOLOGY,HAYS SPECIALIST RECRUITMENT LTD,448287,573.8,773695871
BEIS,Met Office,2020-10-27,04 CONTRACTORS,GOVERNMENT SERVICES,HAYS SPECIALIST RECRUITMENT LTD,448288,366.16,773695871
BEIS,Met Office,2020-10-27,04 CONTRACTORS,CORPORATE,HAYS SPECIALIST RECRUITMENT LTD,448289,658.25,773695871
BEIS,Met Office,2020-10-27,04 CONTRACTORS,TECHNOLOGY,HAYS SPECIALIST RECRUITMENT LTD,448290,558.7,773695871
BEIS,Met Office,2020-10-27,04 CONTRACTORS,GOVERNMENT SERVICES,HAYS SPECIALIST RECRUITMENT LTD,448291,183.08,773695871
BEIS,Met Office,2020-10-27,04 CONTRACTORS,CORPORATE,HAYS SPECIALIST RECRUITMENT LTD,448292,634.67,773695871
BEIS,Met Office,2020-10-27,04 CONTRACTORS,CORPORATE,HAYS SPECIALIST RECRUITMENT LTD,448293,524.82,773695871
BEIS,Met Office,2020-10-27,10 EQUIPMENT MAINTENANCE,TECHNOLOGY,Hewlett Packard Ltd,448323,224056.35,314149679
BEIS,Met Office,2020-10-27,10 EQUIPMENT MAINTENANCE,TECHNOLOGY,Hewlett Packard Ltd,448323,87552,314149679
BEIS,Met Office,2020-10-27,10 EQUIPMENT MAINTENANCE,TECHNOLOGY,Hewlett Packard Ltd,448323,253902.6,314149679
BEIS,Met Office,2020-10-27,PAYE AND VAT,OTHER,HMRC,448181,5513962,-
BEIS,Met Office,2020-10-27,04 CONTRACTORS,GOVERNMENT SERVICES,JOBSEEKERS RECRUITMENT SERVICES LTD,448306,537,130 1297 14
BEIS,Met Office,2020-10-27,04 CONTRACTORS,GOVERNMENT SERVICES,JOBSEEKERS RECRUITMENT SERVICES LTD,448309,402.75,130 1297 14
BEIS,Met Office,2020-10-27,04 CONTRACTORS,GOVERNMENT SERVICES,JOBSEEKERS RECRUITMENT SERVICES LTD,448314,676.14,130 1297 14
BEIS,Met Office,2020-10-27,06 ACCOMMODATION,CHIEF FINANCIAL OFFICER,MORAY COUNCIL,448093,2925,663755506
BEIS,Met Office,2020-10-27,11 SERVICES,CORPORATE,NATIONAL CENTRE FOR DIVERSITY,448308,7375,894810880
BEIS,Met Office,2020-10-27,11 SERVICES,TECHNOLOGY,NEXUS OPEN SYSTEMS LTD,448179,7500,723221673
BEIS,Met Office,2020-10-27,13 MISCELLANEOUS,CHIEF FINANCIAL OFFICER,POSTURITE (UK) LTD,443938,37.19,583565114
BEIS,Met Office,2020-10-27,13 MISCELLANEOUS,CHIEF FINANCIAL OFFICER,POSTURITE (UK) LTD,444034,30.97,583565114
BEIS,Met Office,2020-10-27,13 MISCELLANEOUS,CHIEF FINANCIAL OFFICER,POSTURITE (UK) LTD,446421,252.14,583565114
BEIS,Met Office,2020-10-27,13 MISCELLANEOUS,CHIEF FINANCIAL OFFICER,POSTURITE (UK) LTD,446939,99.17,583565114
BEIS,Met Office,2020-10-27,13 MISCELLANEOUS,CHIEF FINANCIAL OFFICER,POSTURITE (UK) LTD,447414,471.11,583565114
BEIS,Met Office,2020-10-27,13 MISCELLANEOUS,CHIEF FINANCIAL OFFICER,POSTURITE (UK) LTD,448300,654.1,583565114
BEIS,Met Office,2020-10-27,11 SERVICES,OPERATIONS,REACTED PERSONAL DATA,448114,130.24,-
BEIS,Met Office,2020-10-27,06 ACCOMMODATION,CHIEF FINANCIAL OFFICER,REACTED PERSONAL DATA,448182,751,426523462
BEIS,Met Office,2020-10-27,06 ACCOMMODATION,CHIEF FINANCIAL OFFICER,REACTED PERSONAL DATA,448271,287.5,426523462
BEIS,Met Office,2020-10-27,06 ACCOMMODATION,CHIEF FINANCIAL OFFICER,REACTED PERSONAL DATA,448271,176,426523462
BEIS,Met Office,2020-10-27,06 ACCOMMODATION,CHIEF FINANCIAL OFFICER,REACTED PERSONAL DATA,448303,613.88,426523462
BEIS,Met Office,2020-10-27,06 ACCOMMODATION,CHIEF FINANCIAL OFFICER,Scottish Government,448021,31440.85,888842551
BEIS,Met Office,2020-10-27,11 SERVICES,CORPORATE,SIGNS EXPRESS (EXETER),448302,114,631397439
BEIS,Met Office,2020-10-27,04 CONTRACTORS,STRATEGIC INVESTMENT,SOLOS CONSULTANTS LTD,448310,14144,812035476
BEIS,Met Office,2020-10-27,04 CONTRACTORS,TECHNOLOGY,SOLOS CONSULTANTS LTD,448311,8424,812035476
BEIS,Met Office,2020-10-27,04 CONTRACTORS,TECHNOLOGY,SOLOS CONSULTANTS LTD,448312,7140.16,812035476
BEIS,Met Office,2020-10-27,04 CONTRACTORS,TECHNOLOGY,SOLOS CONSULTANTS LTD,448313,12119.6,812035476
BEIS,Met Office,2020-10-27,06 ACCOMMODATION,CHIEF FINANCIAL OFFICER,STONE HILL PARK LTD,448207,18.85,196461180
BEIS,Met Office,2020-10-27,11 SERVICES,OPERATIONS,TES GLOBAL LTD,448272,10000,GB867898631
BEIS,Met Office,2020-10-27,13 MISCELLANEOUS,CHIEF FINANCIAL OFFICER,THE INSTITUTION OF ENGINEERING AND TECHNOLOGY,447506,44.9,GB240342016
BEIS,Met Office,2020-10-27,13 MISCELLANEOUS,OPERATIONS,THE INSTITUTION OF ENGINEERING AND TECHNOLOGY,447506,63.4,GB240342016
BEIS,Met Office,2020-10-27,13 MISCELLANEOUS,SCIENCE,THE INSTITUTION OF ENGINEERING AND TECHNOLOGY,447507,-231,GB240342016
BEIS,Met Office,2020-10-27,13 MISCELLANEOUS,CHIEF FINANCIAL OFFICER,THE INSTITUTION OF ENGINEERING AND TECHNOLOGY,447508,210,GB240342016
BEIS,Met Office,2020-10-27,11 SERVICES,SCIENCE,UNIVERSITY OF EXETER,447722,-208.34,142047795
BEIS,Met Office,2020-10-27,11 SERVICES,GOVERNMENT SERVICES,UNIVERSITY OF EXETER,447784,41488.46,142047795
BEIS,Met Office,2020-10-27,11 SERVICES,SCIENCE,UNIVERSITY OF EXETER,448022,18500,142047795
BEIS,Met Office,2020-10-27,13 MISCELLANEOUS,SCIENCE,University Of Leeds,447565,1166.66,613451470
BEIS,Met Office,2020-10-27,11 SERVICES,GOVERNMENT SERVICES,University Of Reading,447846,57950.03,200012659
BEIS,Met Office,2020-10-27,11 SERVICES,GOVERNMENT SERVICES,University Of Reading,448019,60000,200012659
BEIS,Met Office,2020-10-27,11 SERVICES,GOVERNMENT SERVICES,University Of Reading,448081,48162.2,200012659
BEIS,Met Office,2020-10-27,13 MISCELLANEOUS,SCIENCE,University Of Reading,448183,333.33,200012659
BEIS,Met Office,2020-10-27,13 MISCELLANEOUS,SCIENCE,University Of Reading,448184,333.33,200012659
BEIS,Met Office,2020-10-27,13 MISCELLANEOUS,SCIENCE,University Of Reading,448270,333.33,200012659
BEIS,Met Office,2020-10-28,11 SERVICES,TECHNOLOGY,AMAZON WEB SERVICES INC.,9952,1992.29,N/A
BEIS,Met Office,2020-10-28,11 SERVICES,TECHNOLOGY,AMAZON WEB SERVICES INC.,9953,2194.34,N/A
BEIS,Met Office,2020-10-28,11 SERVICES,TECHNOLOGY,AMAZON WEB SERVICES INC.,9954,1992.29,N/A
BEIS,Met Office,2020-10-28,11 SERVICES,TECHNOLOGY,AMAZON WEB SERVICES INC.,9955,2194.34,N/A
BEIS,Met Office,2020-10-28,11 SERVICES,TECHNOLOGY,AMAZON WEB SERVICES INC.,9956,1992.29,N/A
BEIS,Met Office,2020-10-28,11 SERVICES,TECHNOLOGY,AMAZON WEB SERVICES INC.,9957,2194.34,N/A
BEIS,Met Office,2020-10-28,11 SERVICES,OPERATIONS,"AXYS TECHNOLOGIES, INC",9974,115.96,-
BEIS,Met Office,2020-10-28,11 SERVICES,GOVERNMENT SERVICES,ECMWF,21856,1821.61,NOTVATREG
BEIS,Met Office,2020-10-28,11 SERVICES,GOVERNMENT SERVICES,ECMWF,21857,32014.79,NOTVATREG
BEIS,Met Office,2020-10-28,11 SERVICES,GOVERNMENT SERVICES,ECMWF,21860,1371.57,NOTVATREG
BEIS,Met Office,2020-10-28,11 SERVICES,GOVERNMENT SERVICES,ECMWF,21862,7289.04,NOTVATREG
BEIS,Met Office,2020-10-28,11 SERVICES,GOVERNMENT SERVICES,ECMWF,21864,21575.19,NOTVATREG
BEIS,Met Office,2020-10-28,11 SERVICES,GOVERNMENT SERVICES,ECMWF,21865,7333.32,NOTVATREG
BEIS,Met Office,2020-10-28,11 SERVICES,GOVERNMENT SERVICES,ECMWF,21867,32014.79,NOTVATREG
BEIS,Met Office,2020-10-28,11 SERVICES,GOVERNMENT SERVICES,ECMWF,21868,3629.09,NOTVATREG
BEIS,Met Office,2020-10-28,11 SERVICES,GOVERNMENT SERVICES,ECMWF,21869,1821.61,NOTVATREG
BEIS,Met Office,2020-10-28,11 SERVICES,GOVERNMENT SERVICES,ECMWF,21870,32014.79,NOTVATREG
BEIS,Met Office,2020-10-28,11 SERVICES,GOVERNMENT SERVICES,ECMWF,21871,4913.15,NOTVATREG
BEIS,Met Office,2020-10-28,11 SERVICES,GOVERNMENT SERVICES,ECMWF,21872,30284.26,NOTVATREG
BEIS,Met Office,2020-10-28,11 SERVICES,GOVERNMENT SERVICES,ECMWF,21873,1374.55,NOTVATREG
BEIS,Met Office,2020-10-28,11 SERVICES,GOVERNMENT SERVICES,ECMWF,21874,21227.2,NOTVATREG
BEIS,Met Office,2020-10-28,11 SERVICES,GOVERNMENT SERVICES,ECMWF,21875,895.28,NOTVATREG
BEIS,Met Office,2020-10-28,11 SERVICES,GOVERNMENT SERVICES,ECMWF,21876,10439.6,NOTVATREG
BEIS,Met Office,2020-10-28,11 SERVICES,GOVERNMENT SERVICES,ECMWF,21878,3187.82,NOTVATREG
BEIS,Met Office,2020-10-28,11 SERVICES,GOVERNMENT SERVICES,ECMWF,21879,32014.79,NOTVATREG
BEIS,Met Office,2020-10-28,11 SERVICES,GOVERNMENT SERVICES,ECMWF,21884,2853.77,NOTVATREG
BEIS,Met Office,2020-10-28,11 SERVICES,GOVERNMENT SERVICES,ECMWF,21886,2277.01,NOTVATREG
BEIS,Met Office,2020-10-28,11 SERVICES,GOVERNMENT SERVICES,ECMWF,21888,21575.19,NOTVATREG
BEIS,Met Office,2020-10-28,11 SERVICES,GOVERNMENT SERVICES,ECMWF,21890,1841.45,NOTVATREG
BEIS,Met Office,2020-10-28,11 SERVICES,GOVERNMENT SERVICES,ECMWF,21892,31878.17,NOTVATREG
BEIS,Met Office,2020-10-28,11 SERVICES,GOVERNMENT SERVICES,ECMWF,21893,2277.01,NOTVATREG
BEIS,Met Office,2020-10-28,11 SERVICES,GOVERNMENT SERVICES,ECMWF,21894,3187.82,NOTVATREG
BEIS,Met Office,2020-10-28,11 SERVICES,GOVERNMENT SERVICES,ECMWF,21895,32014.79,NOTVATREG
BEIS,Met Office,2020-10-28,11 SERVICES,GOVERNMENT SERVICES,ECMWF,21896,1262.86,NOTVATREG
BEIS,Met Office,2020-10-28,11 SERVICES,GOVERNMENT SERVICES,ECMWF,21897,13095.16,NOTVATREG
BEIS,Met Office,2020-10-28,11 SERVICES,GOVERNMENT SERVICES,ECMWF,21898,1303.47,NOTVATREG
BEIS,Met Office,2020-10-28,11 SERVICES,GOVERNMENT SERVICES,ECMWF,21899,32014.79,NOTVATREG
BEIS,Met Office,2020-10-28,11 SERVICES,GOVERNMENT SERVICES,ECMWF,21900,166.59,NOTVATREG
BEIS,Met Office,2020-10-28,11 SERVICES,GOVERNMENT SERVICES,ECMWF,21904,1158.56,NOTVATREG
BEIS,Met Office,2020-10-28,11 SERVICES,GOVERNMENT SERVICES,ECMWF,21905,31878.17,NOTVATREG
BEIS,Met Office,2020-10-28,11 SERVICES,GOVERNMENT SERVICES,ECMWF,21907,312.99,NOTVATREG
BEIS,Met Office,2020-10-28,11 SERVICES,GOVERNMENT SERVICES,ECMWF,21908,1985.14,NOTVATREG
BEIS,Met Office,2020-10-28,11 SERVICES,GOVERNMENT SERVICES,ECMWF,21910,427.52,NOTVATREG
BEIS,Met Office,2020-10-28,11 SERVICES,GOVERNMENT SERVICES,ECMWF,21911,542.79,NOTVATREG
BEIS,Met Office,2020-10-28,11 SERVICES,GOVERNMENT SERVICES,ECMWF,21912,910.81,NOTVATREG
BEIS,Met Office,2020-10-28,11 SERVICES,CHIEF FINANCIAL OFFICER,EIR,21942,55.18,4736919B
BEIS,Met Office,2020-10-28,11 SERVICES,SCIENCE,FUNDACIO UNIVERSITAT ROVIRA I VIRGILI (FURV),21828,6375.63,ESG43581321
BEIS,Met Office,2020-10-28,11 SERVICES,SCIENCE,National Oceanography Centre,21829,82558.62,GB 338 5487 64
BEIS,Met Office,2020-10-28,11 SERVICES,CHIEF FINANCIAL OFFICER,SWISSCOM (SCHWEIZ) AG,447515,91.56,-
BEIS,Met Office,2020-10-28,11 SERVICES,SCIENCE,University Of The Witwatersrand,21914,5087.07,4390128942
BEIS,Met Office,2020-10-29,11 SERVICES,TECHNOLOGY,NCC SERVICES  LIMITED,448299,12995,732334556
BEIS,Met Office,2020-10-29,08 SOFTWARE LICENCES,TECHNOLOGY,PRESENTATION CARTOGRAPHY LTD,448345,6600,-
BEIS,Met Office,2020-10-29,08 SOFTWARE LICENCES,TECHNOLOGY,PRESENTATION CARTOGRAPHY LTD,448345,38000,-
BEIS,Met Office,2020-10-29,08 SOFTWARE LICENCES,TECHNOLOGY,PRESENTATION CARTOGRAPHY LTD,448345,7000,-
BEIS,Met Office,2020-10-29,PLANT AND EQUIPMENT,OPERATIONS,SOUTHERN ROPES,448389,5076,GB 891 9765 57
BEIS,Met Office,2020-10-29,PLANT AND EQUIPMENT,OPERATIONS,SOUTHERN ROPES,448389,8600,GB 891 9765 57
BEIS,Met Office,2020-10-29,07 EQUIPMENT,OPERATIONS,SOUTHERN ROPES,448389,5076,GB 891 9765 57
